Cogmind - Beta 10.1 @@@ ROGUE MODE // 2020.10.13 @ 07:12:06 // Winter2019/RPGLIKE Player: Xeram Result: Destroyed self with Fusion Bomb Launcher Performance ------------- Evolutions (9) 4500 Regions Visited (34) 6800 Robots Destroyed (634) 3170 Value Destroyed (33220) 33220 Prototype IDs (73) 1460 Alien Tech Used (2) 400 Bonus (19516) 19516 TOTAL SCORE: 69066 Bonus ------- Triggered High Security 500 Triggered Max Security 1000 High Alert Combat Kills 11736 Follower Combat Kills 2401 Entered Garrisons 1000 Used RIF Installer 2500 Network Hubs Disabled 400 Aligned with FarCom 300 Met Zhirov 300 MAIN.C Attacked Warlord 500 Friendly Fire -1121 Cogmind --------- Core Integrity 0/1750 Matter 126/300 Energy 55/940 System Corruption 5% Temperature Cool (0) Movement Hovering (125) Ox1 Location -1/Command Parts ------- > --- POWER (2) -------- Heavy Antimatter Reactor Quantum Reactor > --- PROPULSION (4) --- Combat Gravmag System Improved Antigrav System Improved Antigrav System Combat Linear Gravjet > --- UTILITY (8) ------ Advanced Power Amplifier Advanced Signal Interpreter Experimental Target Analyzer Advanced Core Analyzer Advanced Particle Charger Advanced Weapon Cycler Advanced Phase Shifter Advanced Force Field > --- WEAPON (5) ------- Improved Matter Neutralizer Improved Matter Neutralizer Smartbomb Launcher Fusion Bomb Launcher > --- INVENTORY (4) ---- Improved Antigrav System Peak State ------------ > --- POWER ------------ Heavy Antimatter Reactor Quantum Reactor > --- PROPULSION ------- Combat Gravmag System Improved Antigrav System Improved Antigrav System Combat Linear Gravjet > --- UTILITY ---------- Advanced Power Amplifier Advanced Cooling System Advanced Signal Interpreter Experimental Target Analyzer Advanced Core Analyzer Advanced Particle Charger Advanced Weapon Cycler Advanced Force Field > --- WEAPON ----------- Improved Matter Neutralizer Improved Matter Neutralizer Improved Matter Neutralizer Improved Matter Neutralizer Enhanced Nova Cannon > --- INVENTORY -------- Advanced Phase Shifter Smartbomb Launcher [Rating: 149] Favorites ----------- Power Quantum Reactor Engine Light Angular Momentum Engine Power Core Light Nuclear Core Reactor Quantum Reactor Propulsion Combat Airjet Leg Potential Leg Wheel Wheel Hover Unit Combat Airjet Utility Core Analyzer Device Long-range Terrain Scanner Processor Core Analyzer Hackware System Shield Protection Centrium Medium Armor Plating Weapon Improved Matter Neutralizer Energy Gun Shock Rifle Energy Cannon Improved Matter Neutralizer Ballistic Gun Shotgun Ballistic Cannon Bore Cannon Launcher Rocket Launcher Special Melee Weapon Improved Datajack Build | -11 -10 -10 -10 -9 -8 -8 -8 -8 -7 -7 -7 -7 -6 -6 -6 -6 -6 -5 -5 -5 -5 -4 -4 -4 -4 -4 -3 -3 -2 -2 -1 -1 -1 -1 ------- Run | Scr Mat Min Exi Min Mat Gar Mat Gar Fac Gar Fac Gar Fac Ext Cet Arc Hub Fac Upp Upp War Pro Fac Upp Upp Zhi Pro Res Res Tes Acc Gar Acc Com Slots Evolved 15 | 3 . . 1 . . . 2 . 1 . . . 1 . 1 . 1 . . . . . 1 . . . . . 2 . . 1 1 . Power 1 | . . . . . . . . . . . . . . . . . . . . . . . . . . . . . 1 . . . . . Propulsion 3 | 1 . . . . . . . . . . . . . . . . 1 . . . . . . . . . . . . . . 1 . . Utility 7 | 1 . . . . . . 2 . 1 . . . 1 . 1 . . . . . . . 1 . . . . . . . . . . . Weapon 4 | 1 . . 1 . . . . . . . . . . . . . . . . . . . . . . . . . 1 . . . 1 . Parts Attached 221 | 5 6 1 2 3 3 9 4 4 16 . 3 1 10 16 2 . 14 10 2 4 24 1 9 5 1 4 . 7 9 3 5 9 21 8 Power 12 | 1 . 1 . . 1 1 . . 1 . . . 1 . 1 . 1 . . . . . . . . 1 . . 1 . . . 2 . Engine 3 | 1 . . . . . 1 . . 1 . . . . . . . . . . . . . . . . . . . . . . . . . Core 2 | . . 1 . . 1 . . . . . . . . . . . . . . . . . . . . . . . . . . . . . Reactor 7 | . . . . . . . . . . . . . 1 . 1 . 1 . . . . . . . . 1 . . 1 . . . 2 . Propulsion 26 | 2 . . 2 . . . . . 1 . . . 2 2 . . 1 . . . 3 . 4 . . . . 3 2 . . . 3 1 Treads . | . . . . . . . . . . . . . . . . . . . . . . . . . . . . . . . . . . . Leg 3 | . . . 2 . . . . . 1 . . . . . . . . . . . . . . . . . . . . . . . . . Wheel 2 | 2 . . . . . . . . . . . . . . . . . . . . . . . . . . . . . . . . . . Hover 21 | . . . . . . . . . . . . . 2 2 . . 1 . . . 3 . 4 . . . . 3 2 . . . 3 1 Flight . | . . . . . . . . . . . . . . . . . . . . . . . . . . . . . . . . . . . Utility 75 | . 3 . . 2 2 . 3 . 3 . 3 . 3 7 1 . 4 . 2 2 11 1 4 3 . 3 . 4 1 1 . . 7 5 Device 50 | . . . . 1 . . 2 . 1 . 2 . 3 6 . . 2 . . 1 6 1 4 2 . 3 . 3 . 1 . . 7 5 Storage . | . . . . . . . . . . . . . . . . . . . . . . . . . . . . . . . . . . . Processor 7 | . . . . . 1 . 1 . . . 1 . . . . . . . . 1 1 . . . . . . 1 1 . . . . . Hackware 3 | . . . . . 1 . . . . . . . . 1 . . 1 . . . . . . . . . . . . . . . . . Protection 15 | . 3 . . 1 . . . . 2 . . . . . 1 . 1 . 2 . 4 . . 1 . . . . . . . . . . Artifact . | . . . . . . . . . . . . . . . . . . . . . . . . . . . . . . . . . . . Weapon 108 | 2 3 . . 1 . 8 1 4 11 . . 1 4 7 . . 8 10 . 2 10 . 1 2 1 . . . 5 2 5 9 9 2 Energy Gun 20 | 2 . . . . . 5 . . 2 . . . 1 . . . . . . . 3 . . . 1 . . . 2 1 . . 3 . Energy Cannon 57 | . . . . . . 2 1 2 7 . . 1 3 4 . . 5 6 . 1 4 . 1 . . . . . 2 1 5 6 5 1 Ballistic Gun 3 | . 3 . . . . . . . . . . . . . . . . . . . . . . . . . . . . . . . . . Ballistic Cannon 3 | . . . . . . . . . . . . . . . . . . . . . 2 . . 1 . . . . . . . . . . Launcher 19 | . . . . 1 . 1 . . 2 . . . . . . . 2 4 . 1 1 . . 1 . . . . 1 . . 3 1 1 Special Weapon . | . . . . . . . . . . . . . . . . . . . . . . . . . . . . . . . . . . . Impact Weapon . | . . . . . . . . . . . . . . . . . . . . . . . . . . . . . . . . . . . Slashing Weapon . | . . . . . . . . . . . . . . . . . . . . . . . . . . . . . . . . . . . Piercing Weapon . | . . . . . . . . . . . . . . . . . . . . . . . . . . . . . . . . . . . Special Melee Weapon 6 | . . . . . . . . 2 . . . . . 3 . . 1 . . . . . . . . . . . . . . . . . Unidentified Prototypes 16 | . . . . . . . . . . . . . 2 1 1 . . . . . 3 . . . . 3 . . 2 2 1 . 1 . Parts Lost 17 | . . 2 . . . 1 . . . . . 1 . . . . . . 2 . 8 . . 1 . . . . . . . . 2 . Power . | . . . . . . . . . . . . . . . . . . . . . . . . . . . . . . . . . . . Propulsion . | . . . . . . . . . . . . . . . . . . . . . . . . . . . . . . . . . . . Utility 10 | . . 2 . . . . . . . . . . . . . . . . 2 . 5 . . 1 . . . . . . . . . . Weapon 7 | . . . . . . 1 . . . . . 1 . . . . . . . . 3 . . . . . . . . . . . 2 . Highest Loss Streak 3 | . . 2 . . . 1 . . . . . 1 . . . . . . 2 . 3 . . 1 . . . . . . . . 1 . Average Slot Usage (%) 96 | . 96 92 66 84 97 97 95 90 98 100 100 99 99 99 98 100 99 100 99 99 87 92 92 95 99 100 100 99 98 100 99 96 98 97 Engine 2 | . 14 4 . . . 1 10 10 9 9 9 9 5 . . . . . . . . . . . . . . . . . . . . . Core 1 | . . 9 13 12 12 10 . . . . . . . . . . . . . . . . . . . . . . . . . . . . Reactor 4 | . . . . . . . . . . . . . 3 8 7 7 7 7 7 7 7 7 6 6 6 6 6 6 7 11 11 11 10 10 Leg 5 | . . . 12 25 25 25 22 20 19 18 18 18 3 . . . . . . . . . . . . . . . . . . . . . Wheel 1 | . 28 28 13 . . . . . . . . . . . . . . . . . . . . . . . . . . . . . . . Hover 12 | . . . . . . . . . . . . . 12 16 15 15 19 21 21 21 19 21 20 20 20 20 20 20 17 17 17 16 20 21 Device 20 | . . . . 5 . . 6 10 11 18 24 27 31 32 30 30 28 28 17 14 12 12 19 30 33 35 40 39 35 29 29 28 26 25 Processor 11 | . . . . . 10 12 10 10 9 9 11 18 16 16 15 15 12 7 7 7 14 15 13 13 13 13 13 13 11 17 17 16 15 15 Hackware 3 | . . . . . 9 12 10 10 9 9 2 . . . . . 1 7 7 7 7 7 2 . . . . . . . . . . . Protection 4 | . 24 21 . 5 1 . . . 8 9 7 . . . 5 7 7 7 16 20 6 7 6 4 6 4 . . . . . . . . Energy Gun 4 | . 3 . . . . 13 9 . 10 18 18 10 1 . . . . . . . 3 7 . . 3 6 6 6 11 11 3 . 1 4 Energy Cannon 15 | . . . . . . 1 23 29 19 9 9 15 24 24 23 23 21 20 21 20 12 7 13 13 13 13 13 13 11 11 19 19 21 14 Ballistic Gun 3 | . 24 28 26 25 25 12 . . . . . . . . . . . . . . . . . . . . . . . . . . . . Naked Turns . | . . . . . . . . . . . . . . . . . . . . . . . . . . . . . . . . . . . Heaviest Build 125 | 8 25 25 11 19 19 26 32 32 36 34 39 38 50 50 64 64 66 66 72 72 90 64 91 92 83 80 76 76 98 96 106 106 125 119 Greatest Support 101 | 20 20 20 60 60 60 60 60 60 60 60 60 60 60 54 54 54 68 68 68 68 68 59 65 65 65 65 65 69 84 84 84 84 101 101 Greatest Overweight (x) 1 | . 1 1 . . . . . . . . . . 1 1 1 1 1 . 1 1 1 1 1 1 1 1 1 1 1 1 1 1 1 1 Average Overweight (x) . | . . . . . . . . . . . . . . . . 1 . . . . . 1 . 1 1 1 1 . 1 . . 1 . . Largest Inventory Capacity 4 | . . . . . 1 1 1 3 3 3 3 4 4 4 4 4 4 4 4 4 4 4 4 4 4 4 4 4 4 4 4 4 4 4 Average Capacity 3 | . . . . . . 1 1 1 3 3 3 3 4 4 4 4 4 4 4 4 4 4 4 4 4 4 4 4 4 4 4 4 4 4 Most Carried 4 | . . . . . . 1 1 2 3 3 3 4 4 4 4 4 4 4 3 4 4 4 4 4 4 4 4 4 4 4 4 4 4 4 Average Carried 2 | . . . . . . . . 1 2 3 2 3 3 3 3 4 3 3 3 3 3 3 3 3 3 3 4 3 3 3 3 3 3 3 Final Capacity 4 | . . . . . 1 1 1 3 3 3 3 4 4 4 4 4 4 4 4 4 4 4 4 4 4 4 4 4 4 4 4 4 4 4 Final Carried 4 | . . . . . . 1 1 2 3 3 3 4 4 3 4 4 3 3 3 4 4 3 4 3 4 4 4 4 4 2 4 4 3 1 Class Distribution -------------------- 30% | Hacker-Gunner 19% | Hacker-Tank 15% | Hacker-Mutant 13% | Hacker-Skirmisher 8% | Hacker-Scout 4% | Mutant Dominant Class ---------------- Mutant | -10/Materials Hacker-Mutant | -10/Mines Hacker-Mutant | -10/Exiles Hacker-Mutant | -9/Mines Hacker-Mutant | -8/Materials Hacker-Mutant | -8/Garrison Hacker-Gunner | -8/Materials Commander-Gunner | -8/Garrison Hacker-Tank | -7/Factory Hacker-Tank | -7/Garrison Hacker-Tank | -7/Factory Hacker-Gunner | -7/Garrison Hacker-Scout | -6/Factory Commander-Scout | -6/Extension Commander-Tank | -6/Cetus Hacker-Tank | -6/Archives Hacker-Scout | -6/Hub_04(d) Hacker-Scout | -5/Factory Hacker-Tank | -5/Upper Caves Hacker-Tank | -5/Upper Caves Hacker-Tank | -5/Warlord Hacker-Gunner | -4/Proximity Caves Hacker-Mutant | -4/Factory Hacker-Gunner | -4/Upper Caves Hacker-Gunner | -4/Upper Caves Hacker-Gunner | -4/Zhirov Hacker-Gunner | -3/Proximity Caves Hacker-Skirmisher | -3/Research Hacker-Skirmisher | -2/Research Hacker-Gunner | -2/Testing Hacker-Gunner | -1/Access Hacker-Gunner | -1/Garrison Hacker-Gunner | -1/Access Hacker-Gunner | -1/Command Resources | -11 -10 -10 -10 -9 -8 -8 -8 -8 -7 -7 -7 -7 -6 -6 -6 -6 -6 -5 -5 -5 -5 -4 -4 -4 -4 -4 -3 -3 -2 -2 -1 -1 -1 -1 ----------- Run | Scr Mat Min Exi Min Mat Gar Mat Gar Fac Gar Fac Gar Fac Ext Cet Arc Hub Fac Upp Upp War Pro Fac Upp Upp Zhi Pro Res Res Tes Acc Gar Acc Com Matter Collected 6144 | 250 237 338 . 459 262 369 60 40 253 . 80 60 101 112 68 . 128 368 38 58 1167 82 50 438 38 . 50 105 122 50 50 18 496 197 Remotely . | . . . . . . . . . . . . . . . . . . . . . . . . . . . . . . . . . . . Salvage Created 23490 | . 343 221 . 129 433 583 730 549 1273 71 236 750 1811 1098 109 37 1853 1531 74 228 3061 295 146 474 226 . 305 600 1145 123 585 395 2768 1308 Parts 1132 | . 38 25 . . 31 35 51 24 77 18 13 44 72 37 5 2 67 64 10 20 145 5 13 18 16 . 15 37 56 15 19 21 71 68 Haulers Intercepted 10 | . 1 . . . . . . . . . . . 1 . . . 2 3 . . . . . . . . . 1 1 . 1 . . . Recyclers Shooed 4 | . . . . . 1 . . . . . . . 2 . . . . . . . . . . . . . . . 1 . . . . . Parts Field Recycled . | . . . . . . . . . . . . . . . . . . . . . . . . . . . . . . . . . . . Retrieved Matter . | . . . . . . . . . . . . . . . . . . . . . . . . . . . . . . . . . . . Parts Self-Destructed 90 | . . . . . . . . . . . . . . . . . . . 8 28 . 5 . 18 16 . 15 . . . . . . . Prevented 11 | . . . . . . . . . . . . . . . . . . . . 1 10 . . . . . . . . . . . . . Kills | -11 -10 -10 -10 -9 -8 -8 -8 -8 -7 -7 -7 -7 -6 -6 -6 -6 -6 -5 -5 -5 -5 -4 -4 -4 -4 -4 -3 -3 -2 -2 -1 -1 -1 -1 ------- Run | Scr Mat Min Exi Min Mat Gar Mat Gar Fac Gar Fac Gar Fac Ext Cet Arc Hub Fac Upp Upp War Pro Fac Upp Upp Zhi Pro Res Res Tes Acc Gar Acc Com Combat Hostiles Destroyed 545 | . 12 8 . 19 10 25 19 15 24 6 2 16 21 13 2 . 17 41 2 11 53 4 7 14 9 . 8 14 20 4 9 27 59 54 Guns 100 | . 12 8 . 12 10 12 . . 9 4 . 3 . . . . . . . . 9 1 . . 2 . 5 2 5 1 1 . . 4 Cannons 322 | . . . . . . . 18 15 11 2 2 12 21 12 2 . 15 20 2 7 42 3 7 12 7 . 3 11 8 2 8 8 57 15 AOE 114 | . . . . 7 . 13 . . 4 . . 1 . . . . . 20 . 4 . . . 2 . . . 1 7 . . 19 1 35 Classes Destroyed 23 | . 6 2 . 1 3 . 1 . 3 . . 1 . . . 1 1 . . . 3 . . . . . . . . . . . 1 . Worker 19 | . 3 1 . . . . 1 . 3 . 1 . 2 . . . 2 2 . . . . . . . . . . 1 . 1 . 2 . Builder 9 | . 2 . . . . . 1 . 2 . . . 3 . . . . 1 . . . . . . . . . . . . . . . . Tunneler 4 | . . 2 . . . . . . 2 . . . . . . . . . . . . . . . . . . . . . . . . . Hauler 10 | . 1 . . . . . . . . . . . 1 . . . 2 3 . . . . . . . . . 1 1 . 1 . . . Recycler 8 | . . 1 . . . . 1 . . . . . 3 . . . 2 . . . . . . . . . . . . . . . 1 . Carrier 1 | . . . . . . . . . . . . . . . . . . . . . . . . . . . . . . . . . 1 . Mechanic 2 | . . . . . . . . . 1 . . . . . . . . . . . . . . . . . . . . . . . 1 . Operator 3 | . . . . . . . . . . . . . . . . 1 1 . . . . . . . . . . . . . 1 . . . Watcher 18 | . 2 . . . 1 . 1 1 1 . 1 . 1 1 . . 3 1 . . . . 2 . . . . 1 . . . . 2 . Swarmer 115 | . 7 6 . . . 8 1 3 . . . . 7 1 . . 4 13 . 10 . . 3 2 4 . 4 . 4 . . 14 . 24 Saboteur 3 | . . . . . . . . . . . . . . . . . 1 . . . . . . . . . . . . . . . 1 1 Grunt 169 | . 5 2 . . 3 15 10 8 11 6 . 8 8 2 . . 2 19 . . . 4 . 8 . . . 7 7 . 2 6 22 14 Brawler 13 | . . . . . 1 . 1 . 3 . . . . . . . . . . . . . . . 1 . . . 1 . . 1 3 2 Duelist 23 | . . . . . 1 . . . 3 . . 2 . . . . 2 . . . . . . 1 1 . . . . . . 3 9 1 Protector 4 | . . . . . . . . . 1 . . . . . . . 1 . . . . . . . . . . . . . . . 2 . Sentry 59 | . . . . . 5 2 6 3 3 . 1 3 2 6 . . 5 1 . . . . 2 1 1 . . 3 3 4 1 1 6 . Hunter 41 | . . . . . . . 1 1 2 . . 1 4 . . . . 5 . . . . 2 . 2 . 2 . 2 . 2 . 10 7 Programmer 32 | . . . . . . . . . 1 . 1 . . . . . 1 3 1 . . . . 1 . . 1 4 3 . 4 1 6 5 Behemoth 9 | . . . . . . . . . . . . 2 . 2 . . . . 1 1 . . . 1 . . 1 . . . . 1 . . Cetus Guard 2 | . . . . . . . . . . . . . . . 2 . . . . . . . . . . . . . . . . . . . Enhanced Grunt 2 | . . . . . . . . . . . . . . . . . 2 . . . . . . . . . . . . . . . . . Lightning 1 | . . . . . . . . . . . . . . . . . 1 . . . . . . . . . . . . . . . . . Packrat 1 | . . . . . . . . . . . . . . . . . . . . . . . . 1 . . . . . . . . . . Tinkerer 7 | . . . . . . . . . . . . . . . . . . . . . 7 . . . . . . . . . . . . . Assembled 19 | . . . . 19 . . . . . . . . . . . . . . . . . . . . . . . . . . . . . . Surgeon 3 | . . . . . . . . . . . . . . . . . . . . . 3 . . . . . . . . . . . . . Wasp 1 | . . . . . . . . . . . . . . . . . . . . . 1 . . . . . . . . . . . . . Thug 19 | . . . . . . . . . . . . . . 1 . . 1 . . . 17 . . . . . . . . . . . . . Savage 3 | . . . . . . . . . . . . . . 1 . . . . . . 2 . . . . . . . . . . . . . Butcher 3 | . . . . . . . . . . . . . . . . . . . . . 3 . . . . . . . . . . . . . Bouncer 10 | . . . . . . . . . . . . . . . . . . . . . 10 . . . . . . . . . . . . . Guerrilla 1 | . . . . . . . . . . . . . . . . . 1 . . . . . . . . . . . . . . . . . Wizard 4 | . . . . . . . . . . . . . . . . . . . . . 4 . . . . . . . . . . . . . Marauder 2 | . . . . . . . . . . . . . . . . . . . . . 2 . . . . . . . . . . . . . Fireman 1 | . . . . . . . . . . . . . . . . . . . . . 1 . . . . . . . . . . . . . Mutant 11 | . . . . . . . . . . . . . . . . . . . . . 11 . . . . . . . . . . . . . Commander 2 | . . . . . . . . . . . . . . . . . . . . . 2 . . . . . . . . . . . . . Best Kill Streak 25 | . 11 4 . 7 3 5 6 4 13 3 1 3 6 3 2 1 5 18 1 6 9 4 4 5 3 . 3 4 8 4 6 17 15 25 Combat Bots Only 25 | . 7 3 . 7 3 5 6 4 10 3 1 3 5 3 2 . 5 14 1 6 9 4 3 5 3 . 3 4 8 4 6 17 14 25 Max Kills in Single Turn 12 | . 2 1 . 2 1 3 2 2 2 1 1 1 3 1 1 1 5 4 1 3 2 1 1 2 1 . 1 2 3 1 2 4 3 12 Gunslinging 1 | . 1 . . . . . . . . . . . . . . . . . . . . . . . . . . . . . . . . . Exploded 12 | . . . . 2 . 3 . . 2 . . 1 . . . . . 4 . 3 . . . 1 . . . 1 3 . . 4 1 12 Melee . | . . . . . . . . . . . . . . . . . . . . . . . . . . . . . . . . . . . Uniques/NPCs Destroyed . | . . . . . . . . . . . . . . . . . . . . . . . . . . . . . . . . . . . Combat | -11 -10 -10 -10 -9 -8 -8 -8 -8 -7 -7 -7 -7 -6 -6 -6 -6 -6 -5 -5 -5 -5 -4 -4 -4 -4 -4 -3 -3 -2 -2 -1 -1 -1 -1 -------- Run | Scr Mat Min Exi Min Mat Gar Mat Gar Fac Gar Fac Gar Fac Ext Cet Arc Hub Fac Upp Upp War Pro Fac Upp Upp Zhi Pro Res Res Tes Acc Gar Acc Com Damage Taken 20734 | . 289 415 . 613 530 1115 616 556 1071 184 123 701 572 731 50 . 1195 959 206 497 4198 299 199 521 11 . 230 279 703 258 90 449 1908 1166 Core 14938 | . 154 241 . 511 450 902 504 462 793 127 91 548 447 560 33 . 878 609 138 261 2599 180 108 362 8 . 182 220 559 201 67 349 1471 923 Absorbed by Shields 8619 | . . . . . . . . . 219 67 45 256 224 287 18 . 387 353 7 . 1489 . 209 363 11 . 242 293 482 272 94 407 1927 967 Redirected to Core 12723 | . 144 194 . 351 279 744 368 320 709 99 79 495 384 468 33 . 700 564 138 249 2258 160 100 325 8 . 157 178 495 177 67 309 1356 815 Core Remaining (%) 68 | 100 . . . 18 . . . 100 . . . 95 . . . . 59 . . . . 39 . . . . 45 81 . 80 . . . . Volleys Fired 1067 | . 45 29 . 38 29 50 35 36 52 13 9 45 38 28 8 3 47 57 6 14 141 13 25 26 11 . 18 30 36 11 14 30 96 34 Largest 5 | . 2 2 . 3 2 3 3 3 3 3 3 3 3 3 3 3 3 3 3 3 3 3 3 3 3 . 3 3 4 4 4 4 5 4 Hottest 572 | . 46 46 . 79 46 195 195 190 210 180 180 220 220 215 200 200 200 285 160 160 173 243 272 272 309 . 309 309 384 380 452 452 572 440 Shots Fired 2959 | . 90 58 . 69 58 97 105 108 154 39 26 128 114 84 24 9 140 140 18 37 366 35 51 69 32 . 53 85 102 38 56 87 381 106 Gun 776 | . 90 58 . 60 58 88 21 . 70 26 18 62 2 . . . . . . . 50 11 . . 6 . 18 27 44 18 10 . 20 19 Cannon 2105 | . . . . . . . 84 108 77 13 8 66 112 84 24 9 137 124 18 35 316 24 51 67 26 . 35 58 55 20 46 76 356 76 Launcher 78 | . . . . 9 . 9 . . 7 . . . . . . . 3 16 . 2 . . . 2 . . . . 3 . . 11 5 11 Special . | . . . . . . . . . . . . . . . . . . . . . . . . . . . . . . . . . . . Kinetic 425 | . 90 58 . 60 58 50 . . . . . . . . . . . . . . 52 10 24 19 4 . . . . . . . . . Thermal 2081 | . . . . . . 38 105 108 77 13 8 66 112 81 16 6 93 124 18 35 234 25 27 48 28 . 53 85 72 20 42 76 376 95 Explosive 78 | . . . . 9 . 9 . . 7 . . . . . . . 3 16 . 2 . . . 2 . . . . 3 . . 11 5 11 Electromagnetic 340 | . . . . . . . . . 70 26 18 62 2 3 8 3 44 . . . 45 . . . . . . . 27 18 14 . . . Entropic 35 | . . . . . . . . . . . . . . . . . . . . . 35 . . . . . . . . . . . . . Robot Hit Streak 65 | . 15 18 . 8 17 18 44 57 27 30 27 29 34 42 11 19 31 33 7 11 52 21 12 16 16 . 24 62 65 43 31 32 46 28 Robot Miss Streak 9 | . 9 5 . 6 3 2 2 1 2 1 2 1 2 1 1 . 1 2 1 1 2 1 3 2 1 . 2 . 1 1 1 1 3 5 Penetration Max 2 | . . . . . . . . . . . . . . . . . . . . . . 1 2 1 . . . . . . . . . . Secondary Targets 8 | . 2 1 . 2 1 2 . . . . . . . . . . . . . . . . . . . . . . . . . . . . Max Gunslinging Chain 1 | . 1 1 . 1 1 1 . . . . . . . . . . . . . . . . . . . . . . . . . . . . Shots Hit Robots 2127 | . 62 48 . 46 48 78 88 80 117 31 22 101 76 86 11 8 96 89 11 20 291 25 29 52 20 . 36 57 74 30 38 56 243 58 Core Hits 1257 | . 29 20 . 40 29 56 37 29 69 15 11 39 50 30 5 3 54 87 4 14 132 9 18 25 13 . 12 34 48 9 16 52 120 148 Critical Hits 162 | . 1 2 . 1 1 . . . 1 . 1 1 1 . 1 1 4 1 . 1 14 5 11 9 4 . . . 2 2 12 19 59 8 Critical Kills 50 | . 1 1 . . . . . . 1 . . . . . 1 . . . . 1 1 3 3 3 3 . . . . . 6 3 18 5 Critical Parts Destroyed 79 | . . 1 . 1 1 . . . . . . 1 1 . . . 3 1 . . 6 2 7 5 1 . . . 2 1 5 8 32 1 Melee Attacks 33 | . . . . . . . . 15 . . . . . 18 . . . . . . . . . . . . . . . . . . . . Impact . | . . . . . . . . . . . . . . . . . . . . . . . . . . . . . . . . . . . Slashing . | . . . . . . . . . . . . . . . . . . . . . . . . . . . . . . . . . . . Piercing . | . . . . . . . . . . . . . . . . . . . . . . . . . . . . . . . . . . . Sneak Attacks 25 | . . . . . . . . 15 . . . . . 10 . . . . . . . . . . . . . . . . . . . . Combat Hostiles . | . . . . . . . . . . . . . . . . . . . . . . . . . . . . . . . . . . . Follow-up Attacks . | . . . . . . . . . . . . . . . . . . . . . . . . . . . . . . . . . . . Damage Inflicted 103443 | . 666 662 . 945 762 2509 2177 1670 3854 690 400 2568 3366 2846 425 293 4954 7591 520 1126 12834 755 1126 2823 1069 . 1921 3401 4315 1461 2075 6502 15335 11802 Guns 14224 | . 666 658 . 464 762 1075 285 . 974 428 174 872 41 . . . . . . . 2182 244 . . 246 . 593 1044 1252 538 362 . 699 665 Cannons 65601 | . . . . . . . 1892 1670 1344 221 226 1540 3041 2846 425 293 3605 3796 520 723 10610 511 1126 2640 823 . 1328 2041 1945 923 1713 3224 13790 2785 Explosions 23599 | . . . . 481 . 1434 . . 1532 41 . 156 284 . . . 1349 3795 . 403 42 . . 183 . . . 316 1118 . . 3278 835 8352 Melee . | . . . . . . . . . . . . . . . . . . . . . . . . . . . . . . . . . . . Ramming 19 | . . 4 . . . . . . 4 . . . . . . . . . . . . . . . . . . . . . . . 11 . Kinetic 6569 | . 666 658 . 464 762 643 . . . . . . . . . . . . . . 2515 216 317 291 37 . . . . . . . . . Thermal 66075 | . . . . . . 432 2177 1670 1929 262 226 1696 3325 2737 301 184 2632 4089 520 723 7186 539 809 2349 1032 . 1921 3085 2556 923 1609 3224 14489 3450 Explosive 21202 | . . . . 481 . 1434 . . 947 . . . . . . . 353 3502 . 403 . . . 183 . . . 316 1118 . . 3278 835 8352 Electromagnetic 7777 | . . . . . . . . . 974 428 174 872 41 109 124 109 1969 . . . 1332 . . . . . . . 641 538 466 . . . Impact . | . . . . . . . . . . . . . . . . . . . . . . . . . . . . . . . . . . . Slashing . | . . . . . . . . . . . . . . . . . . . . . . . . . . . . . . . . . . . Piercing . | . . . . . . . . . . . . . . . . . . . . . . . . . . . . . . . . . . . Entropic 1801 | . . . . . . . . . . . . . . . . . . . . . 1801 . . . . . . . . . . . . . Highest Corruption 13 | . . . . . . . . . 7 7 11 11 . 1 1 1 12 1 2 2 13 13 . 1 1 1 2 3 1 4 . . 4 5 Average Corruption 4 | . . . . . . . . . 4 7 7 11 . 1 1 1 2 1 1 2 10 13 . 1 1 1 1 2 1 2 . . 3 4 Corruption Purged . | . . . . . . . . . . . . . . . . . . . . . . . . . . . . . . . . . . . Effects 300 | . . . . . . . . . 11 11 17 53 . 1 3 1 11 4 3 3 102 17 . 2 2 1 3 12 3 3 . . 25 12 Message Errors 51 | . . . . . . . . . 4 1 2 9 . 1 . 1 4 2 1 1 9 1 . 1 1 1 . 2 2 2 . . 4 2 Matter Fused 46 | . . . . . . . . . . 3 5 6 . . . . 1 . . . 19 3 . . . . . 4 . . . . 2 3 Heat Flow Errors 15 | . . . . . . . . . . 1 1 3 . . . . . . . . 4 . . . . . 2 . . 1 . . 2 1 Energy Discharges 29 | . . . . . . . . . 2 1 2 6 . . 1 . 1 . . 1 5 4 . . 1 . . 2 . . . . 2 1 Parts Rejected 5 | . . . . . . . . . . . . . . . . . . . . . 4 . . . . . . . . . . . . 1 Data Loss (minor) 28 | . . . . . . . . . . 3 4 4 . . . . 2 1 2 . 6 1 . 1 . . . 1 . . . . 2 1 Data Loss (major) 4 | . . . . . . . . . . . . 2 . . . . . . . . 2 . . . . . . . . . . . . . Misfires 5 | . . . . . . . . . . . . 1 . . . . . . . . 3 1 . . . . . . . . . . . . Alerts 1 | . . . . . . . . . . . . . . . . . . . . . . 1 . . . . . . . . . . . . Misdirections 12 | . . . . . . . . . . . 1 6 . . . . . . . . 3 2 . . . . . . . . . . . . Targeting Errors 82 | . . . . . . . . . 3 2 1 14 . . 2 . 2 1 . 1 40 3 . . . . . 2 1 . . . 9 1 Weapon Failures 22 | . . . . . . . . . 2 . 1 2 . . . . 1 . . . 7 1 . . . . 1 1 . . . . 4 2 Overload Shots 3 | . . . . . . . . . . . . . . . . . . 3 . . . . . . . . . . . . . . . . Overflow Damage 3244 | . . . . . . 11 18 21 56 . . 12 178 41 . 20 151 554 . 1 445 15 37 173 60 . 87 58 193 23 55 205 531 299 Projectiles 2334 | . . . . . . . 18 21 16 . . 12 24 41 . 20 122 291 . . 445 15 37 162 60 . 87 58 154 23 55 82 471 120 Explosions 910 | . . . . . . 11 . . 40 . . . 154 . . . 29 263 . 1 . . . 11 . . . . 39 . . 123 60 179 Melee . | . . . . . . . . . . . . . . . . . . . . . . . . . . . . . . . . . . . Knockbacks 10 | . . . . . . . . . . . . . . . . . . . . . 7 . 1 2 . . . . . . . . . . Impact . | . . . . . . . . . . . . . . . . . . . . . . . . . . . . . . . . . . . Kinetic 10 | . . . . . . . . . . . . . . . . . . . . . 7 . 1 2 . . . . . . . . . . Secondary . | . . . . . . . . . . . . . . . . . . . . . . . . . . . . . . . . . . . Self-Inflicted Damage 1336 | . . 2 . 28 . 87 . . 205 40 . 36 . . . . 244 . . 102 . . 86 . . . . 162 144 . . . 22 178 Shots 26 | . . . . 1 . 4 . . 4 1 . 1 . . . . 3 . . 2 . . 2 . . . . 2 3 . . . 1 2 Rammed 4 | . . 2 . . . . . . 1 . . . . . . . . . . . . . . . . . . . . . . . 1 . Targets Rammed 4 | . . 2 . . . . . . 1 . . . . . . . . . . . . . . . . . . . . . . . 1 . Kicked . | . . . . . . . . . . . . . . . . . . . . . . . . . . . . . . . . . . . Crushed . | . . . . . . . . . . . . . . . . . . . . . . . . . . . . . . . . . . . Highest Temperature 521 | . . . . . . 210 81 102 86 188 271 315 165 134 27 42 120 351 6 7 257 5 521 306 431 . 297 282 298 368 262 156 412 230 Average Temperature 68 | . . . . . . 69 22 23 25 69 161 75 37 33 12 21 37 97 4 5 112 5 211 111 132 . 117 114 106 138 104 77 93 83 Received Heat Transfer 3952 | . 72 120 . 40 207 522 243 297 339 96 8 214 123 259 18 . 94 199 33 36 537 84 8 85 . . . 24 49 16 4 12 164 49 Effects 11 | . . . . . . . . . . . . . . . . . . 1 . . . . 4 . . . 1 2 . 2 . . 1 . Shutdowns 3 | . . . . . . . . . . . . . . . . . . . . . . . 1 . . . . . . 1 . . 1 . Energy Bleed 3 | . . . . . . . . . . . . . . . . . . 1 . . . . . . . . . 2 . . . . . . Interference 4 | . . . . . . . . . . . . . . . . . . . . . . . 3 . . . 1 . . . . . . . Matter Decay 1 | . . . . . . . . . . . . . . . . . . . . . . . . . . . . . . 1 . . . . Siege Activations . | . . . . . . . . . . . . . . . . . . . . . . . . . . . . . . . . . . . Robots Corrupted 4 | . . . . . . . . . . . . . . . . . 2 . . . . . . . . . . . . 1 1 . . . Combat Hostiles 2 | . . . . . . . . . . . . . . . . . 1 . . . . . . . . . . . . 1 . . . . Parts Fried 40 | . . . . . . . . . 1 2 1 2 . . . 1 10 . . . 14 . . . . . . . 3 3 3 . . . Impact Corruptions . | . . . . . . . . . . . . . . . . . . . . . . . . . . . . . . . . . . . Robots Melted 8 | . . . . . . . 1 . . . . . . 1 . . 1 1 . . 3 . . . . . . . . . . . 1 . Combat Hostiles 8 | . . . . . . . 1 . . . . . . 1 . . 1 1 . . 3 . . . . . . . . . . . 1 . Parts Melted 104 | . . . . . . . 9 3 2 . 2 5 9 8 2 . 8 10 2 1 18 . 1 1 1 . 1 3 4 . 2 1 5 6 Heat Transferred 60762 | . . . . . . 801 3293 2331 2682 500 350 2550 4350 3500 400 250 3250 4330 550 850 8868 592 642 1252 668 . 1237 2002 1559 434 876 1619 8880 2146 Parts Sabotaged 6 | . . . . . . . . . . . . . . . . . . . . . . . . . . . . . . . . . 6 . Parts Stolen . | . . . . . . . . . . . . . . . . . . . . . . . . . . . . . . . . . . . Parts Stripped . | . . . . . . . . . . . . . . . . . . . . . . . . . . . . . . . . . . . Power Chain Reactions 11 | . . . . . . . . . 5 1 . 2 . . . . 2 . . . 1 . . . . . . . . . . . . . Missiles Intercepted . | . . . . . . . . . . . . . . . . . . . . . . . . . . . . . . . . . . . Alert | -11 -10 -10 -10 -9 -8 -8 -8 -8 -7 -7 -7 -7 -6 -6 -6 -6 -6 -5 -5 -5 -5 -4 -4 -4 -4 -4 -3 -3 -2 -2 -1 -1 -1 -1 ------- Run | Scr Mat Min Exi Min Mat Gar Mat Gar Fac Gar Fac Gar Fac Ext Cet Arc Hub Fac Upp Upp War Pro Fac Upp Upp Zhi Pro Res Res Tes Acc Gar Acc Com Peak Influence 2134 | . 391 316 . . 352 972 853 1755 1262 908 590 682 527 713 739 334 1038 868 . . . . 596 . . . . 422 317 1702 1341 1710 2134 2088 Initial 1365 | . . 74 . . . 228 473 355 1100 764 476 273 357 198 399 295 105 508 . . . . 42 . . . . 91 237 162 1100 1072 1025 1365 Average 653 | . 192 198 . . 128 598 630 1048 1101 849 509 493 291 395 556 295 640 501 . . . . 269 . . . . 198 221 1631 1243 1448 1399 1474 Maximum Alert Level 5 | . 1 1 . . 1 3 3 5 4 3 2 2 2 3 3 1 3 3 . . . . 2 . . . . 2 1 5 4 5 5 5 Low Security (%) 16 | 100 42 45 . 100 71 . . . . . . . 31 4 . . 5 . . . . . 50 . . . . 47 40 . . . . . Level 1 22 | . 57 54 . . 28 28 7 3 . . 11 21 37 41 7 100 7 36 . . . . 2 . . . . 50 59 . . . . . Level 2 22 | . . . . . . 32 53 24 4 . 88 78 30 49 59 . 32 41 . . . . 47 . . . . 1 . . . . . . Level 3 16 | . . . . . . 39 38 27 43 100 . . . 5 33 . 55 21 . . . . . . . . . . . . . 19 14 . Level 4 16 | . . . . . . . . 36 51 . . . . . . . . . . . . . . . . . . . . . 100 41 59 82 Level 5 4 | . . . . . . . . . . . . . . . . . . . . . . . . . . . . . . . . 39 26 17 High Security . | . . . . . . . . 7 . . . . . . . . . . . . . . . . . . . . . . . . . . Max Security 1 | . . . . . . . . . . . . . . . . . . . . . . . . . . . . . . 99 . . . . Squads Dispatched 78 | . 3 . . . 2 . 7 . 9 . 1 . 7 1 . . 6 3 . . . . . . . . . 2 3 13 1 . 17 3 Investigation 10 | . 2 . . . . . 1 . 1 . . . 4 . . . . . . . . . . . . . . 1 1 . . . . . Extermination 10 | . . . . . . . . . 1 . 1 . . . . . 1 1 . . . . . . . . . 1 2 . . . 2 1 Reinforcement 21 | . 1 . . . 1 . 5 . 4 . . . 3 1 . . 2 2 . . . . . . . . . . . . 1 . . 1 Assault 31 | . . . . . . . . . 2 . . . . . . . 1 . . . . . . . . . . . . 13 . . 14 1 Garrison 6 | . . . . . 1 . 1 . 1 . . . . . . . 2 . . . . . . . . . . . . . . . 1 . Intercept . | . . . . . . . . . . . . . . . . . . . . . . . . . . . . . . . . . . . Construction Impeded 4 | . . . . . . . . . 2 . . . . . . . 1 1 . . . . . . . . . . . . . . . . Haulers Reinforced 3 | . . . . . . . . . . . . . 1 . . . . 1 . . . . . . . . . . . . 1 . . . Stealth | -11 -10 -10 -10 -9 -8 -8 -8 -8 -7 -7 -7 -7 -6 -6 -6 -6 -6 -5 -5 -5 -5 -4 -4 -4 -4 -4 -3 -3 -2 -2 -1 -1 -1 -1 --------- Run | Scr Mat Min Exi Min Mat Gar Mat Gar Fac Gar Fac Gar Fac Ext Cet Arc Hub Fac Upp Upp War Pro Fac Upp Upp Zhi Pro Res Res Tes Acc Gar Acc Com Distress Signals 28 | . 2 . . . 1 . 2 . 1 . . . 4 2 1 . 2 5 . . . . 1 . . . . . 2 . 1 . . 4 Communications Jammed . | . . . . . . . . . . . . . . . . . . . . . . . . . . . . . . . . . . . Distress Signals . | . . . . . . . . . . . . . . . . . . . . . . . . . . . . . . . . . . . Times Spotted 761 | . 19 19 . 24 13 29 35 28 36 8 3 17 27 32 8 3 34 39 2 13 73 4 14 13 10 . 8 18 27 21 11 10 79 84 Peak Tracking Total 83 | . 4 5 . 7 3 5 13 5 8 3 2 3 5 6 5 2 6 10 1 5 9 4 5 4 4 . 4 4 10 14 4 14 11 83 Tactical Retreats 42 | . 1 3 . 1 . 1 3 . 3 1 . 3 2 . . . 3 . . 1 3 . 2 . 1 . 1 1 3 . . 2 5 2 Traps | -11 -10 -10 -10 -9 -8 -8 -8 -8 -7 -7 -7 -7 -6 -6 -6 -6 -6 -5 -5 -5 -5 -4 -4 -4 -4 -4 -3 -3 -2 -2 -1 -1 -1 -1 ------- Run | Scr Mat Min Exi Min Mat Gar Mat Gar Fac Gar Fac Gar Fac Ext Cet Arc Hub Fac Upp Upp War Pro Fac Upp Upp Zhi Pro Res Res Tes Acc Gar Acc Com Traps Triggered 34 | . 2 . . . . 1 . 2 7 . 1 4 1 2 . . 5 1 . . 4 . . . . . . 1 . 1 . . 2 . Indirectly . | . . . . . . . . . . . . . . . . . . . . . . . . . . . . . . . . . . . Trap Hack Attempts 9 | . . . . . . . . . . . . . . . . . 9 . . . . . . . . . . . . . . . . . Triggered 1 | . . . . . . . . . . . . . . . . . 1 . . . . . . . . . . . . . . . . . Disarmed 1 | . . . . . . . . . . . . . . . . . 1 . . . . . . . . . . . . . . . . . Reprogrammed . | . . . . . . . . . . . . . . . . . . . . . . . . . . . . . . . . . . . Reused . | . . . . . . . . . . . . . . . . . . . . . . . . . . . . . . . . . . . Traps Extracted . | . . . . . . . . . . . . . . . . . . . . . . . . . . . . . . . . . . . Installed . | . . . . . . . . . . . . . . . . . . . . . . . . . . . . . . . . . . . Triggered 3 | . . . . . . . . . . . . . . . . . . . . 1 2 . . . . . . . . . . . . . Machines | -11 -10 -10 -10 -9 -8 -8 -8 -8 -7 -7 -7 -7 -6 -6 -6 -6 -6 -5 -5 -5 -5 -4 -4 -4 -4 -4 -3 -3 -2 -2 -1 -1 -1 -1 ---------- Run | Scr Mat Min Exi Min Mat Gar Mat Gar Fac Gar Fac Gar Fac Ext Cet Arc Hub Fac Upp Upp War Pro Fac Upp Upp Zhi Pro Res Res Tes Acc Gar Acc Com Machines Disabled 78 | . . 1 . . . . . 7 4 . 1 2 2 2 3 3 14 6 . . 6 . 6 . . . . 4 1 2 2 3 9 . Max in Single Turn 11 | . . . . . . . . 2 2 . 1 1 2 . 1 . 11 2 . . 1 . 6 . . . . 1 1 1 1 1 1 . Garrison Access 6 | . . . . . . . . . . . . . . . . . 1 . . . . . . . . . . . 1 . . . 4 . Garrison Relay 8 | . . . . . . . . 5 . . . 2 . . . . . . . . . . . . . . . . . . . 1 . . Phase Generator 1 | . . . . . . . . 1 . . . . . . . . . . . . . . . . . . . . . . . . . . Network Hub 2 | . . . . . . . . . . . . . . . . . 2 . . . . . . . . . . . . . . . . . Machines Sabotaged . | . . . . . . . . . . . . . . . . . . . . . . . . . . . . . . . . . . . Garrisons Compromised . | . . . . . . . . . . . . . . . . . . . . . . . . . . . . . . . . . . . Overloaded Fab Kills . | . . . . . . . . . . . . . . . . . . . . . . . . . . . . . . . . . . . Fab Network Shutdowns 1 | . . . . . . . . . . . . . . . . . . . . . . . 1 . . . . . . . . . . . Hacking | -11 -10 -10 -10 -9 -8 -8 -8 -8 -7 -7 -7 -7 -6 -6 -6 -6 -6 -5 -5 -5 -5 -4 -4 -4 -4 -4 -3 -3 -2 -2 -1 -1 -1 -1 --------- Run | Scr Mat Min Exi Min Mat Gar Mat Gar Fac Gar Fac Gar Fac Ext Cet Arc Hub Fac Upp Upp War Pro Fac Upp Upp Zhi Pro Res Res Tes Acc Gar Acc Com Machines Accessed 64 | . 4 . 1 1 2 . 3 . 3 . 2 . 6 9 4 1 6 3 . 1 . . 2 1 1 4 . 2 5 . 1 . . 2 Terminals 44 | . 4 . . 1 1 . 2 . 1 . 1 . 6 9 4 . 5 3 . . . . 1 . . . . 2 3 . . . . 1 Fabricators 1 | . . . . . . . . . . . . . . . . . . . . . . . 1 . . . . . . . . . . . Repair Stations 2 | . . . . . . . . . 1 . . . . . . . . . . . . . . . . . . . . . . . . 1 Recycling Units . | . . . . . . . . . . . . . . . . . . . . . . . . . . . . . . . . . . . Scanalyzers 1 | . . . . . . . . . . . . . . . . . . . . . . . . . . . . . 1 . . . . . Garrison Access 7 | . . . . . 1 . 1 . 1 . 1 . . . . . 1 . . . . . . . . . . . 1 . 1 . . . Total Hacks 268 | . 18 . 1 1 4 . 11 . 13 . 4 . 19 28 12 25 30 28 . 1 . . 12 1 1 14 . 14 18 . 1 . . 12 Successful 160 | . 9 . 1 1 1 . 6 . 10 . 2 . 7 14 5 25 18 13 . 1 . . 10 1 1 14 . 4 9 . 1 . . 7 Failed 107 | . 9 . . . 3 . 5 . 3 . 2 . 12 13 7 . 12 15 . . . . 2 . . . . 10 9 . . . . 5 Catastrophic 9 | . 2 . . . . . 1 . 1 . . . . . . . . 1 . . . . . . . . . 2 . . . . . 2 Database Lockouts 1 | . . . . . . . . . . . . . . 1 . . . . . . . . . . . . . . . . . . . . Manual 92 | . . . 1 . . . 8 . 1 . . . 9 14 2 . 17 18 . . . . 8 . . . . 5 9 . . . . . Terminals 195 | . 18 . . 1 3 . 10 . 7 . 3 . 19 28 12 . 29 28 . . . . 4 . . . . 14 15 . . . . 4 Fabricators 8 | . . . . . . . . . . . . . . . . . . . . . . . 8 . . . . . . . . . . . Repair Stations 13 | . . . . . . . . . 5 . . . . . . . . . . . . . . . . . . . . . . . . 8 Recycling Units . | . . . . . . . . . . . . . . . . . . . . . . . . . . . . . . . . . . . Scanalyzers 2 | . . . . . . . . . . . . . . . . . . . . . . . . . . . . . 2 . . . . . Garrison Access 7 | . . . . . 1 . 1 . 1 . 1 . . . . . 1 . . . . . . . . . . . 1 . 1 . . . Terminal Hacks 133 | . 9 . 1 1 . . 5 . 6 . 1 . 7 13 5 25 14 13 . 1 . . 4 1 1 14 . 4 7 . . . . 1 Record 40 | . 2 . . 1 . . . . . . . . 1 . 4 25 2 1 . . . . . . . 2 . . 2 . . . . . Part Schematic 9 | . . . . . . . . . . . . . . 1 . . . 2 . . . . 2 . . 4 . . . . . . . . Robot Analysis 7 | . . . . . . . . . . . . . . . . . . . . . . . . . . 4 . 1 2 . . . . . Prototype ID Bank 17 | . 1 . . . . . . . 1 . . . . 5 . . 1 4 . . . . . . . 4 . 1 . . . . . . Open Door 12 | . . . . . . . . . . . . . 1 7 1 . . . . 1 . . . 1 1 . . . . . . . . . Level Access Points 5 | . . . . . . . . . . . 1 . . . . . 2 . . . . . . . . . . 1 1 . . . . . Branch Access Points 7 | . . . . . . . . . 1 . . . 1 . . . 1 1 . . . . 1 . . . . 1 1 . . . . . Emergency Access Points 1 | . . . . . . . 1 . . . . . . . . . . . . . . . . . . . . . . . . . . . Machine Index 1 | . . . . . . . . . . . . . 1 . . . . . . . . . . . . . . . . . . . . . Terminal Index 4 | . . . . . . . 1 . 1 . . . . . . . . 1 . . . . 1 . . . . . . . . . . . Scanalyzer Index 1 | . 1 . . . . . . . . . . . . . . . . . . . . . . . . . . . . . . . . . Garrison Index 1 | . . . . . . . . . . . . . . . . . 1 . . . . . . . . . . . . . . . . . Alert Level 1 | . 1 . . . . . . . . . . . . . . . . . . . . . . . . . . . . . . . . . Unreport Threat 13 | . . . . . . . 3 . 3 . . . 3 . . . 1 2 . . . . . . . . . . 1 . . . . . Locate Traps 2 | . 1 . . . . . . . . . . . . . . . . . . . . . . . . . . . . . . . . 1 Disarm Traps 1 | . . . . . . . . . . . . . . . . . 1 . . . . . . . . . . . . . . . . . Transport Status 2 | . 2 . . . . . . . . . . . . . . . . . . . . . . . . . . . . . . . . . Hauler Manifests 1 | . . . . . . . . . . . . . . . . . 1 . . . . . . . . . . . . . . . . . Registered Components 2 | . . . . . . . . . . . . . . . . . 1 1 . . . . . . . . . . . . . . . . Registered Prototypes 1 | . . . . . . . . . . . . . . . . . 1 . . . . . . . . . . . . . . . . . Zone Layout 4 | . 1 . . . . . . . . . . . . . . . 2 1 . . . . . . . . . . . . . . . . EX-Prototype ID Bank 1 | . . . 1 . . . . . . . . . . . . . . . . . . . . . . . . . . . . . . . Fabricator Hacks 4 | . . . . . . . . . . . . . . . . . . . . . . . 4 . . . . . . . . . . . Load Schematic 2 | . . . . . . . . . . . . . . . . . . . . . . . 2 . . . . . . . . . . . Build 2 | . . . . . . . . . . . . . . . . . . . . . . . 2 . . . . . . . . . . . Repair Station Hacks 9 | . . . . . . . . . 3 . . . . . . . . . . . . . . . . . . . . . . . . 6 Scan Component 5 | . . . . . . . . . 2 . . . . . . . . . . . . . . . . . . . . . . . . 3 Repair 4 | . . . . . . . . . 1 . . . . . . . . . . . . . . . . . . . . . . . . 3 Recycling Unit Hacks . | . . . . . . . . . . . . . . . . . . . . . . . . . . . . . . . . . . . Scanalyzer 1 | . . . . . . . . . . . . . . . . . . . . . . . . . . . . . 1 . . . . . Insert Component 1 | . . . . . . . . . . . . . . . . . . . . . . . . . . . . . 1 . . . . . Garrison Access Hacks 7 | . . . . . 1 . 1 . 1 . 1 . . . . . 1 . . . . . . . . . . . 1 . 1 . . . Unlock Access 5 | . . . . . 1 . 1 . 1 . 1 . . . . . . . . . . . . . . . . . . . 1 . . . Seal Access 2 | . . . . . . . . . . . . . . . . . 1 . . . . . . . . . . . 1 . . . . . Unauthorized Hacks 5 | . . . . . . . . . . . . . . 1 . . 2 . . . . . 2 . . . . . . . . . . . Terminals 3 | . . . . . . . . . . . . . . 1 . . 2 . . . . . . . . . . . . . . . . . Botnet 2 | . . . . . . . . . . . . . . 1 . . 1 . . . . . . . . . . . . . . . . . Detonate 1 | . . . . . . . . . . . . . . . . . 1 . . . . . . . . . . . . . . . . . Fabricators 2 | . . . . . . . . . . . . . . . . . . . . . . . 2 . . . . . . . . . . . Prioritize 1 | . . . . . . . . . . . . . . . . . . . . . . . 1 . . . . . . . . . . . Siphon 1 | . . . . . . . . . . . . . . . . . . . . . . . 1 . . . . . . . . . . . Repair Stations . | . . . . . . . . . . . . . . . . . . . . . . . . . . . . . . . . . . . Recycling Units . | . . . . . . . . . . . . . . . . . . . . . . . . . . . . . . . . . . . Scanalyzers . | . . . . . . . . . . . . . . . . . . . . . . . . . . . . . . . . . . . Garrison Access . | . . . . . . . . . . . . . . . . . . . . . . . . . . . . . . . . . . . Data Cores Recovered 2 | . . . . . . . . . . . . . . . . . 1 . . . . . . . . . . . . . 1 . . . Used . | . . . . . . . . . . . . . . . . . . . . . . . . . . . . . . . . . . . Hacking Detections 36 | . 4 . . 1 1 . 2 . 2 . 1 . 5 4 2 . 4 3 . . . . 2 . . . . 1 3 . . . . 1 Full Trace Events 11 | . 4 . . . 1 . 1 . 1 . . . 3 . . . . . . . . . . . . . . . 1 . . . . . Feedback Events . | . . . . . . . . . . . . . . . . . . . . . . . . . . . . . . . . . . . Feedback Blocked . | . . . . . . . . . . . . . . . . . . . . . . . . . . . . . . . . . . . Robot Schematics Acquired . | . . . . . . . . . . . . . . . . . . . . . . . . . . . . . . . . . . . Robots Built . | . . . . . . . . . . . . . . . . . . . . . . . . . . . . . . . . . . . Matter . | . . . . . . . . . . . . . . . . . . . . . . . . . . . . . . . . . . . Time . | . . . . . . . . . . . . . . . . . . . . . . . . . . . . . . . . . . . Total Robot Build Rating . | . . . . . . . . . . . . . . . . . . . . . . . . . . . . . . . . . . . Part Schematics Acquired 9 | . . . . . . . . . . . . . . 1 . . . 2 . . . . 2 . . 4 . . . . . . . . Parts Built 4 | . . . . . . . . . . . . . . . . . . . . . . . 4 . . . . . . . . . . . Matter 384 | . . . . . . . . . . . . . . . . . . . . . . . 384 . . . . . . . . . . . Time 64 | . . . . . . . . . . . . . . . . . . . . . . . 64 . . . . . . . . . . . Total Part Build Rating 32 | . . . . . . . . . . . . . . . . . . . . . . . 32 . . . . . . . . . . . Parts Repaired 4 | . . . . . . . . . 1 . . . . . . . . . . . . . . . . . . . . . . . . 3 Time 142 | . . . . . . . . . 23 . . . . . . . . . . . . . . . . . . . . . . . . 119 Parts Recycled . | . . . . . . . . . . . . . . . . . . . . . . . . . . . . . . . . . . . Recycled Matter . | . . . . . . . . . . . . . . . . . . . . . . . . . . . . . . . . . . . Retrieved Matter . | . . . . . . . . . . . . . . . . . . . . . . . . . . . . . . . . . . . Retrieved Components . | . . . . . . . . . . . . . . . . . . . . . . . . . . . . . . . . . . . Parts Scanalyzed . | . . . . . . . . . . . . . . . . . . . . . . . . . . . . . . . . . . . Part Schematics Acquired . | . . . . . . . . . . . . . . . . . . . . . . . . . . . . . . . . . . . Parts Damaged . | . . . . . . . . . . . . . . . . . . . . . . . . . . . . . . . . . . . Bothacking | -11 -10 -10 -10 -9 -8 -8 -8 -8 -7 -7 -7 -7 -6 -6 -6 -6 -6 -5 -5 -5 -5 -4 -4 -4 -4 -4 -3 -3 -2 -2 -1 -1 -1 -1 ------------ Run | Scr Mat Min Exi Min Mat Gar Mat Gar Fac Gar Fac Gar Fac Ext Cet Arc Hub Fac Upp Upp War Pro Fac Upp Upp Zhi Pro Res Res Tes Acc Gar Acc Com Used RIF Installer 5 | . . . . . . 1 . 1 . 1 . 1 . . . . . . . . . . . . . . . . . . . 1 . . Coupler Efficiency 1 | . . . . . . . . . . 1 . . . . . . . . . . . . . . . . . . . . . . . . Hotswap 1 | . . . . . . . . 1 . . . . . . . . . . . . . . . . . . . . . . . . . . Threat Obfuscator 2 | . . . . . . . . . . . . 1 . . . . . . . . . . . . . . . . . . . 1 . . Robots Hacked 5 | . . . . . . . . . . . . . . 5 . . . . . . . . . . . . . . . . . . . . Non-combat . | . . . . . . . . . . . . . . . . . . . . . . . . . . . . . . . . . . . Combat 5 | . . . . . . . . . . . . . . 5 . . . . . . . . . . . . . . . . . . . . Robot Hacks Applied 5 | . . . . . . . . . . . . . . 5 . . . . . . . . . . . . . . . . . . . . formatsys_high 5 | . . . . . . . . . . . . . . 5 . . . . . . . . . . . . . . . . . . . . Relay Couplers Released 13 | . . . . . . . . 7 . . . 4 . . . . . . . . . . . . . . . . . . . 2 . . Machine Destruction 13 | . . . . . . . . 7 . . . 4 . . . . . . . . . . . . . . . . . . . 2 . . Attached 1 | . . . . . . . . . . . . . . 1 . . . . . . . . . . . . . . . . . . . . Robots Rewired 36 | . . . . . . 7 . 13 . . . . . 16 . . . . . . . . . . . . . . . . . . . . Allies Hacked . | . . . . . . . . . . . . . . . . . . . . . . . . . . . . . . . . . . . Hacks Repelled . | . . . . . . . . . . . . . . . . . . . . . . . . . . . . . . . . . . . Allies | -11 -10 -10 -10 -9 -8 -8 -8 -8 -7 -7 -7 -7 -6 -6 -6 -6 -6 -5 -5 -5 -5 -4 -4 -4 -4 -4 -3 -3 -2 -2 -1 -1 -1 -1 -------- Run | Scr Mat Min Exi Min Mat Gar Mat Gar Fac Gar Fac Gar Fac Ext Cet Arc Hub Fac Upp Upp War Pro Fac Upp Upp Zhi Pro Res Res Tes Acc Gar Acc Com Total Allies 56 | . . 3 . . . 7 . 13 . . . . . 31 2 . . . . . . . . . . . . . . . . . . . Largest Group 28 | . . 3 2 . . 7 7 10 7 . . . . 28 18 16 7 . . . . . . . . . . . . . . . . . Highest-Rated Group 929 | . . 76 45 . . 180 180 208 142 . . . . 929 746 720 324 . . . . . . . . . . . . . . . . . Highest-Rated Ally 156 | . . 31 31 . . 38 38 38 38 . . . . 156 156 156 94 . . . . . . . . . . . . . . . . . Total Orders . | . . . . . . . . . . . . . . . . . . . . . . . . . . . . . . . . . . . Ally Attacks 423 | . . 21 . . . 16 32 61 10 . . . . 85 86 50 62 . . . . . . . . . . . . . . . . . Total Damage 10289 | . . 527 . . . 624 878 1541 365 . . . . 1890 1866 1112 1486 . . . . . . . . . . . . . . . . . Kills 90 | . . 8 . . . 7 8 21 3 . . . . 16 10 4 13 . . . . . . . . . . . . . . . . . Allies Corrupted 2 | . . . . . . . . . 1 . . . . . . . 1 . . . . . . . . . . . . . . . . . Allies Melted . | . . . . . . . . . . . . . . . . . . . . . . . . . . . . . . . . . . . Intel | -11 -10 -10 -10 -9 -8 -8 -8 -8 -7 -7 -7 -7 -6 -6 -6 -6 -6 -5 -5 -5 -5 -4 -4 -4 -4 -4 -3 -3 -2 -2 -1 -1 -1 -1 ------- Run | Scr Mat Min Exi Min Mat Gar Mat Gar Fac Gar Fac Gar Fac Ext Cet Arc Hub Fac Upp Upp War Pro Fac Upp Upp Zhi Pro Res Res Tes Acc Gar Acc Com Robot Analysis Total 7 | . . . . . . . . . . . . . . . . . . . . . . . . . . 4 . 1 2 . . . . . Derelict Logs Recovered 5 | . . 1 . . . . . . . . . . . . . . . . . 2 . 2 . . . . . . . . . . . . Drone Launches . | . . . . . . . . . . . . . . . . . . . . . . . . . . . . . . . . . . . Drone Recoveries . | . . . . . . . . . . . . . . . . . . . . . . . . . . . . . . . . . . . Exploration | -11 -10 -10 -10 -9 -8 -8 -8 -8 -7 -7 -7 -7 -6 -6 -6 -6 -6 -5 -5 -5 -5 -4 -4 -4 -4 -4 -3 -3 -2 -2 -1 -1 -1 -1 ------------- Run | Scr Mat Min Exi Min Mat Gar Mat Gar Fac Gar Fac Gar Fac Ext Cet Arc Hub Fac Upp Upp War Pro Fac Upp Upp Zhi Pro Res Res Tes Acc Gar Acc Com Turns Passed 20076 | 39 442 758 190 357 344 820 647 810 1037 255 454 690 798 972 277 113 772 850 297 657 1390 289 588 536 435 194 376 793 1056 213 273 373 1519 462 Spaces Moved 12874 | 41 325 705 215 213 222 575 399 660 443 179 458 520 581 629 164 71 578 573 172 449 748 201 311 320 291 150 269 355 531 127 153 188 874 184 Core 7 | 7 . . . . . . . . . . . . . . . . . . . . . . . . . . . . . . . . . . Treads . | . . . . . . . . . . . . . . . . . . . . . . . . . . . . . . . . . . . Legs 3908 | . . . 100 213 222 575 399 660 443 179 458 520 139 . . . . . . . . . . . . . . . . . . . . . Wheels 1179 | 34 325 705 115 . . . . . . . . . . . . . . . . . . . . . . . . . . . . . . . Hover 7780 | . . . . . . . . . . . . . 442 629 164 71 578 573 172 449 748 201 311 320 291 150 269 355 531 127 153 188 874 184 Flight . | . . . . . . . . . . . . . . . . . . . . . . . . . . . . . . . . . . . Fastest Speed 50 | 50 80 80 80 90 90 90 90 90 90 90 90 90 76 76 76 146 65 65 65 65 58 121 52 122 122 122 122 58 121 58 58 134 53 53 Average Speed 102 | 74 88 87 84 90 90 90 90 90 90 90 90 90 97 105 134 146 83 65 112 126 99 121 121 122 122 122 122 121 122 133 133 134 126 121 Slowest Speed 150 | 80 90 90 90 90 90 90 90 90 90 90 90 90 150 146 146 146 146 65 128 128 146 121 122 122 122 122 122 131 134 134 134 134 134 125 Overloaded Moves . | . . . . . . . . . . . . . . . . . . . . . . . . . . . . . . . . . . . Propulsion Burnouts . | . . . . . . . . . . . . . . . . . . . . . . . . . . . . . . . . . . . Robots Hopped . | . . . . . . . . . . . . . . . . . . . . . . . . . . . . . . . . . . . Cave-ins Triggered . | . . . . . . . . . . . . . . . . . . . . . . . . . . . . . . . . . . . Teleports 1 | . . . . . . . . . . . . . . . . . . . . . . . . . . . . . . 1 . . . . Exploration Rate (%) 44 | 4 51 98 60 58 27 85 39 96 17 39 12 55 26 82 70 76 56 21 38 75 65 45 9 53 51 62 46 10 18 36 3 38 27 8 Regions Visited 34 Branch Regions 17 Pre-discovered Areas 3 | . . 1 . . . . . . . . . . . . . . . . . . . 1 . . . 1 . . . . . . . . Known Exits Taken 23 | . . . . . 1 . 1 . 1 . 1 . 1 1 1 1 1 1 . 1 1 1 1 1 1 1 1 1 1 1 1 . 1 . Unknown Exits Taken 6 | 1 1 1 1 1 . . . . . . . . . . . . . . 1 . . . . . . . . . . . . . . . Scrap Searched 10 | . . 1 . . . . . . . . . . . . . . . . 2 4 . 1 . 1 . . 1 . . . . . . . Spaces Dug 43 | . . . . . . . . . . . . . . . . . . 6 . 3 10 2 1 . 2 . 1 9 7 . . . . 2 Terrain Destroyed 1495 | . . . . 87 . 18 9 89 87 4 . 12 29 5 . 1 364 82 3 42 57 8 29 27 9 . 12 79 27 2 . 57 161 195 Melee . | . . . . . . . . . . . . . . . . . . . . . . . . . . . . . . . . . . . Projectile 335 | . . . . . . . 9 . 2 . . 4 21 5 . 1 17 17 3 18 57 8 15 14 9 . 12 19 19 2 . 4 63 16 AOE 1160 | . . . . 87 . 18 . 89 85 4 . 8 8 . . . 347 65 . 24 . . 14 13 . . . 60 8 . . 53 98 179 Terrain Rammed . | . . . . . . . . . . . . . . . . . . . . . . . . . . . . . . . . . . . Walls Destroyed . | . . . . . . . . . . . . . . . . . . . . . . . . . . . . . . . . . . . Machines Disabled . | . . . . . . . . . . . . . . . . . . . . . . . . . . . . . . . . . . . Actions | -11 -10 -10 -10 -9 -8 -8 -8 -8 -7 -7 -7 -7 -6 -6 -6 -6 -6 -5 -5 -5 -5 -4 -4 -4 -4 -4 -3 -3 -2 -2 -1 -1 -1 -1 --------- Run | Scr Mat Min Exi Min Mat Gar Mat Gar Fac Gar Fac Gar Fac Ext Cet Arc Hub Fac Upp Upp War Pro Fac Upp Upp Zhi Pro Res Res Tes Acc Gar Acc Com Total 17624 | 46 388 788 222 308 308 786 608 785 957 243 480 641 729 861 203 74 758 933 260 509 1091 219 492 422 355 161 291 676 892 156 200 279 1127 376 Wait 2502 | 1 9 35 4 53 28 55 136 30 429 27 4 24 73 66 22 1 86 239 71 37 65 5 130 53 47 2 . 241 280 1 10 19 87 132 Move 12835 | 40 324 704 214 212 221 573 398 658 442 177 457 518 580 628 163 70 577 572 171 448 747 200 310 319 290 149 268 354 530 126 152 186 873 184 Hop . | . . . . . . . . . . . . . . . . . . . . . . . . . . . . . . . . . . . Pick Up 30 | . . . . . . 1 1 1 2 . 2 1 1 3 . . 1 . . . 2 . 3 . . 1 . 1 2 . . 6 2 . Fast Attach 132 | 5 6 1 2 3 3 6 3 . 10 . 2 1 9 7 2 . 6 . 2 2 19 . 4 1 1 4 . 5 3 2 3 . 16 4 Attach 29 | . . . . . . . 1 . 1 . . . 1 1 . . 1 1 . . 4 . . 1 . 1 . . 1 2 . 9 2 3 Detach 27 | . . . . . . 2 1 . . . 1 . 1 1 1 . . . . 1 5 . 1 . 1 . . . . 1 1 9 . 1 Swap 62 | . . . . . . 3 . 4 5 . 1 . . 8 . . 7 9 . 2 1 1 5 3 . . . 2 5 . 2 . 3 1 Drop 104 | . 2 1 2 . 3 6 2 . 4 . 4 . 9 10 . . 2 1 . 1 9 . 7 . . 4 . 7 7 3 3 6 8 3 Fire 1067 | . 45 29 . 38 29 50 35 36 52 13 9 45 38 28 8 3 47 57 6 14 141 13 25 26 11 . 18 30 36 11 14 30 96 34 Melee 33 | . . . . . . . . 15 . . . . . 18 . . . . . . . . . . . . . . . . . . . . Ram 3 | . . 2 . . . . . . . . . . . . . . . . . . . . . . . . . . . . . . 1 . Kick 1 | . . . . . . . . . 1 . . . . . . . . . . . . . . . . . . . . . . . . . Crush . | . . . . . . . . . . . . . . . . . . . . . . . . . . . . . . . . . . . Escape Stasis 63 | . . . . . . 3 . 2 . . . 6 . 26 . . . 13 . . . . . . . . . . . . . . 13 . Rewire 70 | . . . . . . 29 . 14 . . . . . 27 . . . . . . . . . . . . . . . . . . . . Trap 9 | . . . . . . . . . . . . . . . . . 9 . . . . . . . . . . . . . . . . . Miscellaneous 657 | . 2 16 . 2 24 58 31 25 11 26 . 46 17 38 7 . 22 41 10 4 98 . 7 19 5 . 5 36 28 10 15 14 26 14 Route ------- -11/Scrapyard -10/Materials (discovered 2 exits: [*Mat] / [*Min]) -10/Mines (discovered 3 exits: [*Mat x2] / *Exi) -10/Exiles -9/Mines -8/Materials (discovered 2 exits: [*Sto] / Gar) -8/Garrison (discovered 3 exits: *Mat x3) -8/Materials (discovered 3 exits: *Fac / [*Sto] / Gar) -8/Garrison (discovered 3 exits: *Fac x3) -7/Factory (discovered 3 exits: Low x2 / Gar) -7/Garrison (discovered 2 exits: *Fac x2) -7/Factory (discovered 5 exits: Fac x4 / Gar) -7/Garrison (discovered 2 exits: *Fac x2) -6/Factory (discovered 5 exits: *Fac / Low x2 / *Ext x2) -6/Extension (discovered 3 exits: *Fac x2 / *Cet) -6/Cetus -6/Archives (discovered 3 exits: Fac / *Hub x2) -6/Hub_04(d) (discovered 4 exits: *Fac x4) -5/Factory (discovered 3 exits: *Fac / *Upp x2) -5/Upper Caves -5/Upper Caves (discovered 2 exits: Fac / *War) -5/Warlord -4/Proximity Caves -4/Factory (discovered 3 exits: *Res / *Upp x2) -4/Upper Caves -4/Upper Caves -4/Zhirov -3/Proximity Caves -3/Research (discovered 6 exits: *Res x3 / Arm / Qua x2) -2/Research (discovered 5 exits: Acc x3 / *Tes x2) -2/Testing -1/Access -1/Garrison -1/Access -1/Command History --------- Turn | Location | Event 1 | -11/Scrapyard | Upgraded with Propulsion slot (x1) 1 | -11/Scrapyard | Upgraded with Utility slot (x1) 1 | -11/Scrapyard | Upgraded with Weapon slot (x1) 6 | -11/Scrapyard | Discovered new exit (range 15) 40 | -11/Scrapyard | Entered Materials 198 | -10/Materials | Destroyed 7 combat bots 249 | -10/Materials | Discovered new exit (range 8) 312 | -10/Materials | Build established: Mutant 342 | -10/Materials | Reached level 2 415 | -10/Materials | Discovered new exit (range 16) 482 | -10/Materials | Entered Mines 558 | -10/Mines | Learned location of Zion (-7) 760 | -10/Mines | Discovered new exit (range 16) 799 | -10/Mines | Reached level 3 901 | -10/Mines | Received a Mining Laser from a helpful Derelict 912 | -10/Mines | Deemed a non-threat by the Exiles lab entrance 913 | -10/Mines | Discovered new exit (range 5) 1043 | -10/Mines | Discovered new exit (range 7) 1113 | -10/Mines | Build established: Hacker-Mutant 1240 | -10/Mines | Entered Exiles 1240 | -10/Exiles | Accompanied by 3 allies 1242 | -10/Exiles | Reached level 4 1263 | -10/Exiles | Met 8R-AWN 1270 | -10/Exiles | Led the pair of lost Derelicts to a safe place 1279 | -10/Exiles | Met EX-HEX 1301 | -10/Exiles | Met EX-BIN 1310 | -10/Exiles | Aligned with FarCom system 1311 | -10/Exiles | Given EX-Vault access code 1330 | -10/Exiles | Opened EX-Vault 1338 | -10/Exiles | Found Potential Leg 1340 | -10/Exiles | Found Potential Leg 1342 | -10/Exiles | Upgraded with Weapon slot (x1) 1361 | -10/Exiles | Warned to stay clear of 0b10 Research branches 1386 | -10/Exiles | Met EX-DEC 1418 | -10/Exiles | Discovered new exit (range 14) 1430 | -10/Exiles | Left Exiles lab with Potential Leg 1430 | -10/Exiles | Entered Mines 1437 | -9/Mines | Assembled infested the area 1442 | -9/Mines | Assisted by a Guerilla fighting off Assembled 1514 | -9/Mines | Received a Rocket Launcher from a helpful Derelict 1551 | -9/Mines | Core integrity fell below 50% 1585 | -9/Mines | Destroyed 7 combat bots 1741 | -9/Mines | Core integrity fell below 20% 1768 | -9/Mines | Discovered new exit (range 5) 1787 | -9/Mines | Entered Materials 1788 | -8/Materials | Core integrity fell below 50% 1788 | -8/Materials | Core integrity fell below 20% 1789 | -8/Materials | Reached level 5 2020 | -8/Materials | Reached level 6 2067 | -8/Materials | Discovered new exit (range 8) 2099 | -8/Materials | Garrison activated, responded to threat 2131 | -8/Materials | Identified exit to Garrison 2131 | -8/Materials | Entered Garrison 2136 | -8/Garrison | Installed Relay Interface Framework 2136 | -8/Garrison | Reached level 7 2177 | -8/Garrison | Triggered checkpoint 2236 | -8/Garrison | Triggered checkpoint 2318 | -8/Garrison | Discovered new exit (range 9) 2352 | -8/Garrison | Triggered checkpoint 2412 | -8/Garrison | Triggered checkpoint 2500 | -8/Garrison | Discovered new exit (range 8) 2547 | -8/Garrison | Triggered checkpoint 2551 | -8/Garrison | Reached level 8 2577 | -8/Garrison | Triggered checkpoint 2719 | -8/Garrison | Reached level 9 2748 | -8/Garrison | Triggered checkpoint 2926 | -8/Garrison | Discovered new exit (range 11) 2951 | -8/Garrison | Entered Materials 2951 | -8/Materials | Accompanied by 7 allies 3093 | -8/Materials | Reached level 10 3118 | -8/Materials | Discovered new exit (range 7) 3196 | -8/Materials | Build established: Hacker-Skirmisher 3199 | -8/Materials | Upgraded with Utility slot (x1) 3268 | -8/Materials | Discovered new exit (range 8) 3317 | -8/Materials | Reached level 11 3330 | -8/Materials | Upgraded with Utility slot (x1) 3520 | -8/Materials | Garrison activated, responded to threat 3598 | -8/Materials | Identified exit to Garrison 3598 | -8/Materials | Entered Garrison 3616 | -8/Garrison | Triggered checkpoint 3624 | -8/Garrison | Reached level 12 3627 | -8/Garrison | Build established: Hacker-Gunner 3630 | -8/Garrison | Garrison Relay disabled 3663 | -8/Garrison | Phase Generator disabled 3810 | -8/Garrison | Triggered checkpoint 3817 | -8/Garrison | Triggered checkpoint 3909 | -8/Garrison | Triggered checkpoint 3909 | -8/Garrison | Garrison Relay disabled 3976 | -8/Garrison | Discovered new exit (range 5) 3993 | -8/Garrison | Triggered checkpoint 4007 | -8/Garrison | Garrison Relay disabled 4007 | -8/Garrison | Reached level 13 4118 | -8/Garrison | Triggered checkpoint 4131 | -8/Garrison | Garrison Relay disabled 4166 | -8/Garrison | Triggered checkpoint 4177 | -8/Garrison | Discovered new exit (range 15) 4183 | -8/Garrison | Build established: Commander-Gunner 4222 | -8/Garrison | Expanded RIF knowledge: Hotswap 4284 | -8/Garrison | Triggered checkpoint 4305 | -8/Garrison | Discovered new exit (range 9) 4336 | -8/Garrison | Triggered checkpoint 4350 | -8/Garrison | High security lockdown imminent 4408 | -8/Garrison | Entered Factory 4408 | -7/Factory | Accompanied by 7 allies 4410 | -7/Factory | Reached level 14 4434 | -7/Factory | Reached level 15 4833 | -7/Factory | Build established: Hacker-Tank 5176 | -7/Factory | Repaired Broken Lgt. Angular Momentum Engine 5208 | -7/Factory | First assault squad dispatched 5273 | -7/Factory | Identified exit to Lower Caves 5306 | -7/Factory | Upgraded with Utility slot (x1) 5373 | -7/Factory | Reached level 16 5397 | -7/Factory | Garrison activated, responded to threat 5442 | -7/Factory | Destroyed 10 combat bots 5444 | -7/Factory | Identified exit to Garrison 5445 | -7/Factory | Entered Garrison 5544 | -7/Garrison | Triggered checkpoint 5562 | -7/Garrison | Discovered new exit (range 8) 5678 | -7/Garrison | Discovered new exit (range 15) 5696 | -7/Garrison | Expanded RIF knowledge: Coupler Efficiency 5700 | -7/Garrison | Entered Factory 5781 | -7/Factory | Identified exit to Factory 6072 | -7/Factory | System corruption reached 10% 6153 | -7/Factory | Identified exit to Garrison 6154 | -7/Factory | Entered Garrison 6252 | -7/Garrison | Spotted B-75 Beast 6284 | -7/Garrison | Destroyed B-75 Beast 6289 | -7/Garrison | Spotted B-75 Beast 6316 | -7/Garrison | Destroyed B-75 Beast 6370 | -7/Garrison | Triggered checkpoint 6438 | -7/Garrison | Discovered exit to Factory (range 13) 6496 | -7/Garrison | Triggered checkpoint 6517 | -7/Garrison | Discovered exit to Factory (range 12) 6533 | -7/Garrison | Expanded RIF knowledge: Threat Obfuscation 6562 | -7/Garrison | Triggered checkpoint 6592 | -7/Garrison | Garrison Relay disabled 6592 | -7/Garrison | Reached level 17 6634 | -7/Garrison | Build established: Hacker-Gunner 6724 | -7/Garrison | Triggered checkpoint 6796 | -7/Garrison | Triggered checkpoint 6799 | -7/Garrison | Garrison Relay disabled 6844 | -7/Garrison | Entered Factory 6917 | -6/Factory | Identified exit to Lower Caves 6917 | -6/Factory | Identified exit to Extension 6998 | -6/Factory | Reached level 18 7001 | -6/Factory | Upgraded with Utility slot (x1) 7301 | -6/Factory | Discovered new exit (range 13) 7306 | -6/Factory | Build established: Hacker-Scout 7634 | -6/Factory | Build established: Hacker-Skirmisher 7642 | -6/Factory | Entered Extension 7760 | -6/Extension | Reached level 19 7841 | -6/Extension | Rescued a captive Derelict 7865 | -6/Extension | Rescued a captive Derelict 7866 | -6/Extension | Rescued a captive Derelict 7896 | -6/Extension | Rescued A7 8203 | -6/Extension | Spotted B-75 Beast 8205 | -6/Extension | Discovered new exit (range 22) 8210 | -6/Extension | Destroyed B-75 Beast 8216 | -6/Extension | Spotted B-75 Beast 8234 | -6/Extension | Destroyed B-75 Beast 8279 | -6/Extension | Rescued a captive Derelict 8293 | -6/Extension | Central database locked down 8296 | -6/Extension | Rescued a captive Derelict 8386 | -6/Extension | Rescued a captive Derelict 8387 | -6/Extension | Rescued a captive Derelict 8425 | -6/Extension | Build established: Commander-Scout 8444 | -6/Extension | Rescued a captive Derelict 8445 | -6/Extension | Rescued a captive Derelict 8532 | -6/Extension | Discovered new exit (range 20) 8549 | -6/Extension | Disrupted transfer network 8556 | -6/Extension | Discovered new exit (range 6) 8584 | -6/Extension | Identified exit to Cetus 8614 | -6/Extension | Entered Cetus 8614 | -6/Cetus | Accompanied by 18 allies (A7) 8616 | -6/Cetus | Reached level 20 8616 | -6/Cetus | Upgraded with Utility slot (x1) 8619 | -6/Cetus | Acquired a Cetus Manufacturing Module code from A7 8626 | -6/Cetus | Spotted Cetus Guard 8626 | -6/Cetus | Spotted Cetus Guard 8626 | -6/Cetus | Spotted Cetus Guard 8633 | -6/Cetus | Spotted Cetus Guard 8635 | -6/Cetus | Destroyed Cetus Guard 8642 | -6/Cetus | Allies destroyed Cetus Guard 8643 | -6/Cetus | Destroyed Cetus Guard 8646 | -6/Cetus | Allies destroyed Cetus Guard 8739 | -6/Cetus | Started Cetus Manufacturing Module 8764 | -6/Cetus | Manufactured an Enhanced Grunt 8789 | -6/Cetus | Manufactured an Enhanced Grunt 8791 | -6/Cetus | Cetus Manufacturing Module disabled 8829 | -6/Cetus | Found a strange terminal 8857 | -6/Cetus | Discovered new exit (range 15) 8878 | -6/Cetus | Identified exit to Archives 8891 | -6/Cetus | Entered Archives 8891 | -6/Archives | Accompanied by 16 allies (A7) 8920 | -6/Archives | Discovered new exit (range 22) 8921 | -6/Archives | Discovered new exit (range 20) 8932 | -6/Archives | Unable to access archive contents 8955 | -6/Archives | Unable to access archive contents 8961 | -6/Archives | Discovered new exit (range 16) 8970 | -6/Archives | Unable to access archive contents 8998 | -6/Archives | Identified exit to Hub_04(d) 9004 | -6/Archives | Entered Hub_04(d) 9004 | -6/Hub_04(d) | Accompanied by 7 allies 9028 | -6/Hub_04(d) | Identified exit to Factory 9202 | -6/Hub_04(d) | Garrison activated, responded to threat 9205 | -6/Hub_04(d) | Reached level 21 9208 | -6/Hub_04(d) | Upgraded with Propulsion slot (x1) 9250 | -6/Hub_04(d) | Network Hub disabled 9354 | -6/Hub_04(d) | First assault squad dispatched 9514 | -6/Hub_04(d) | Build established: Hacker-Scout 9749 | -6/Hub_04(d) | Network Hub disabled 9749 | -6/Hub_04(d) | Spotted Lightning 9749 | -6/Hub_04(d) | Spotted Lightning 9749 | -6/Hub_04(d) | Spotted Lightning 9756 | -6/Hub_04(d) | System corruption reached 10% 9762 | -6/Hub_04(d) | Destroyed Lightning 9776 | -6/Hub_04(d) | Entered Factory 9806 | -5/Factory | Identified exit to Upper Caves 10145 | -5/Factory | Reached level 22 10366 | -5/Factory | Discovered new exit (range 23) 10403 | -5/Factory | Destroyed 14 combat bots 10610 | -5/Factory | Destroyed 9 combat bots 10626 | -5/Factory | Entered Upper Caves 10691 | -5/Upper Caves | Spotted B-75 Beast 10704 | -5/Upper Caves | Destroyed B-75 Beast 10771 | -5/Upper Caves | Reached level 23 10896 | -5/Upper Caves | Discovered new exit (range 24) 10923 | -5/Upper Caves | Entered another Upper Caves area 10953 | -5/Upper Caves | Learned Factory stockpile data 11013 | -5/Upper Caves | Discovered new exit (range 19) 11022 | -5/Upper Caves | Build established: Hacker-Tank 11205 | -5/Upper Caves | Spotted B-75 Beast 11239 | -5/Upper Caves | Destroyed B-75 Beast 11383 | -5/Upper Caves | Learned Factory security intel 11535 | -5/Upper Caves | Discovered new exit (range 9) 11579 | -5/Upper Caves | Identified exit to Warlord 11580 | -5/Upper Caves | Entered Warlord 11616 | -5/Warlord | Discovered new exit (range 14) 11680 | -5/Warlord | Opened side exit 11690 | -5/Warlord | RIF detected upon attempting to enter Warlord's base 11690 | -5/Warlord | Attacked by Warlord forces 11733 | -5/Warlord | Spotted BN-28S(g) 11744 | -5/Warlord | Destroyed BN-28S(g) 11890 | -5/Warlord | Spotted NW-WCD(B) 11894 | -5/Warlord | Destroyed NW-WCD(B) 11959 | -5/Warlord | Spotted K1-H5F(B) 11991 | -5/Warlord | Destroyed K1-H5F(B) 12140 | -5/Warlord | System corruption reached 10% 12143 | -5/Warlord | Found Prototype Ballistic Cannon 12143 | -5/Warlord | Identified Hvy. Autocannon 12170 | -5/Warlord | Lost 3 parts (1u2w) 12177 | -5/Warlord | Destroyed 9 combat bots 12383 | -5/Warlord | Found Prototype Device 12383 | -5/Warlord | Identified Minesniffer Drone Bay 12436 | -5/Warlord | Found Hvy. Autocannon 12510 | -5/Warlord | Found Prototype Energy Gun 12510 | -5/Warlord | Identified Vortex Shotgun 12513 | -5/Warlord | Found Vortex Shotgun 12680 | -5/Warlord | Warlord's base attacked by MAIN.C 12793 | -5/Warlord | Spotted M5-1NX(g) 12802 | -5/Warlord | Destroyed M5-1NX(g) 12852 | -5/Warlord | Spotted B-86 Titan 12867 | -5/Warlord | Spotted B-75 Beast 12969 | -5/Warlord | Identified exit to Proximity Caves 12970 | -5/Warlord | Entered Proximity Caves 12992 | -4/Proximity Caves | Core integrity fell below 50% 13150 | -4/Proximity Caves | Identified exit to Factory 13259 | -4/Proximity Caves | Entered Factory 13260 | -4/Factory | Core integrity fell below 50% 13261 | -4/Factory | Reached level 24 13371 | -4/Factory | Identified exit to Upper Caves 13445 | -4/Factory | Fabricated Adv. Force Field (x2) 13483 | -4/Factory | Fabricated Adv. Weapon Cycler (x2) 13554 | -4/Factory | Local fabrication network quarantined 13672 | -4/Factory | Reached level 25 13733 | -4/Factory | Discovered new exit (range 15) 13750 | -4/Factory | Upgraded with Utility slot (x1) 13777 | -4/Factory | Identified exit to Research 13847 | -4/Factory | Entered Upper Caves 13848 | -4/Upper Caves | Encountered a Warlord checkpoint 13889 | -4/Upper Caves | Attracted the attention of an 0b10 checkpoint 14014 | -4/Upper Caves | Spotted B-86 Titan 14096 | -4/Upper Caves | Destroyed B-86 Titan 14242 | -4/Upper Caves | Build established: Hacker-Gunner 14328 | -4/Upper Caves | Discovered new exit (range 22) 14382 | -4/Upper Caves | Identified exit to Upper Caves 14383 | -4/Upper Caves | Entered another Upper Caves area 14694 | -4/Upper Caves | Attracted the attention of an 0b10 checkpoint 14791 | -4/Upper Caves | Discovered new exit (range 23) 14817 | -4/Upper Caves | Identified exit to Zhirov 14818 | -4/Upper Caves | Entered Zhirov 14818 | -4/Zhirov | Discovered new exit (range 3) 14840 | -4/Zhirov | Met Zhirov 14875 | -4/Zhirov | Learned location of Quarantine (-3) 14886 | -4/Zhirov | Zhirov requested help retrieving the SGEMP Prototype 14906 | -4/Zhirov | Found Alien Artifact 14906 | -4/Zhirov | Identified Integrated Reactor 14906 | -4/Zhirov | Installed Integrated Reactor, increased core energy generation (+10) 14924 | -4/Zhirov | Found Alien Artifact 15011 | -4/Zhirov | Identified exit to Proximity Caves 15012 | -4/Zhirov | Entered Proximity Caves 15014 | -3/Proximity Caves | Reached level 26 15056 | -3/Proximity Caves | Spotted B-86 Titan 15072 | -3/Proximity Caves | Destroyed B-86 Titan 15283 | -3/Proximity Caves | Discovered exit to Research (range 16) 15388 | -3/Proximity Caves | Entered Research 15389 | -3/Research | Core integrity fell below 50% 15390 | -3/Research | Reached level 27 15704 | -3/Research | Build established: Hacker-Skirmisher 15835 | -3/Research | Reached level 28 15887 | -3/Research | Found Unknown Device 15887 | -3/Research | Identified Quantum Capacitor 16135 | -3/Research | Identified exit to Research 16135 | -3/Research | Identified exit to Armory 16135 | -3/Research | Identified exit to Quarantine 16181 | -3/Research | Entered another Research area 16183 | -2/Research | Reached level 29 16183 | -2/Research | Upgraded with Weapon slot (x1) 16261 | -2/Research | Identified exit to Access 16299 | -2/Research | Identified exit to Testing 16571 | -2/Research | Destroyed 8 combat bots 16599 | -2/Research | Reached level 30 16601 | -2/Research | Upgraded with Power slot (x1) 17211 | -2/Research | Found Prototype Processor 17211 | -2/Research | Identified Exp. Target Analyzer 17237 | -2/Research | Entered Testing 17238 | -2/Testing | Maximum security lockdown engaged 17239 | -2/Testing | Reached level 31 17276 | -2/Testing | Found Prototype Energy Gun 17276 | -2/Testing | Identified Warp Gun 17369 | -2/Testing | Spotted Striker 17369 | -2/Testing | Spotted Striker 17378 | -2/Testing | Identified Transdimensional Reconstructor 17378 | -2/Testing | Warped through subspace 17417 | -2/Testing | Discovered exit to Access (range 12) 17418 | -2/Testing | Unstable Terrabomb Derivative detonated 17450 | -2/Testing | Entered Access 17452 | -1/Access | Reached level 32 17581 | -1/Access | Build established: Hacker-Gunner 17587 | -1/Access | Reached level 33 17715 | -1/Access | Identified exit to Garrison 17723 | -1/Access | Entered Garrison 17775 | -1/Garrison | Triggered checkpoint 17794 | -1/Garrison | Garrison Relay disabled 17838 | -1/Garrison | Triggered checkpoint 17856 | -1/Garrison | Triggered checkpoint 17865 | -1/Garrison | Spotted B-99 Colossus 17893 | -1/Garrison | Destroyed 17 combat bots 17911 | -1/Garrison | Destroyed B-99 Colossus 17942 | -1/Garrison | Reached level 34 17957 | -1/Garrison | Upgraded with Propulsion slot (x1) 18069 | -1/Garrison | Discovered new exit (range 10) 18080 | -1/Garrison | Identified exit to Access 18089 | -1/Garrison | Expanded RIF knowledge: Threat Obfuscation 18096 | -1/Garrison | Entered Access 18430 | -1/Access | Garrison activated, responded to threat 18596 | -1/Access | First assault squad dispatched 18970 | -1/Access | Destroyed 8 combat bots 19051 | -1/Access | Reached level 35 19053 | -1/Access | Upgraded with Weapon slot (x1) 19141 | -1/Access | Found Fusion Bomb Launcher 19282 | -1/Access | Destroyed 14 combat bots 19551 | -1/Access | Core integrity fell below 50% 19593 | -1/Access | Spotted B-99 Colossus 19597 | -1/Access | Destroyed 10 combat bots 19604 | -1/Access | Spotted B-99 Colossus 19611 | -1/Access | Discovered new exit (range 3) 19614 | -1/Access | Identified exit to Command 19615 | -1/Access | Entered Command 19617 | -1/Command | Reached level 36 19679 | -1/Command | Repaired Adv. Force Field 19712 | -1/Command | Repaired Adv. Particle Charger 19767 | -1/Command | Repaired Imp. Matter Neutralizer 19900 | -1/Command | First assault squad dispatched 19963 | -1/Command | Destroyed 7 combat bots 20017 | -1/Command | Destroyed 7 combat bots 20045 | -1/Command | Destroyed 25 combat bots 20051 | -1/Command | Core integrity fell below 20% 20077 | -1/Command | Destroyed self with Fusion Bomb Launcher Last Messages --------------- 20072_ System corrupted: Fusion Bomb Launcher failed to launch. 20072_ B-74 Champion suffers critical hit. 20072_ Penetrated by Slug. 20072_ Slug penetrates G-73 Enforcer. 20072_ Penetrated by Slug. 20072_ Slug penetrates H-88 Terminator. 20072_ G-73 Enforcer suffers critical hit. 20072_ G-73 Enforcer destroyed. 20074_ Slug penetrates Earth. 20074_ Penetrated by Slug. 20075_ Slug penetrates Wall. 20075_ Slug penetrates L-61 Swordsman. 20076_ The unstable cave ceiling collapses. 20076_ Penetrated by Slug. [Achievement: 30k Club] [Achievement: 40k Club] [Achievement: 50k Club] [Achievement: Torch] [Achievement: Rambo] [Achievement: Overachiever] Map ----- +----------------------------------------------------+ | ??????? ???????????# #?????????????????????? | | ????#??? ?????#####?# #?????????????????????? | | ????# ??? ?????# #?# #?????????????????????? | | ????# ??# #?????# #?# #?????????????????????? | | ????# #?# #??#### #?# #?????????????????????? | | ++###+""##""####"##" #### =#?????????????????????? | | = " hl #%!#?????????????????????? | | [%==% %lblhhb *%#?????????????????????? | | *=[!%[blbhhblhg *=###???????????????????? | | % *%ghgggggghglb ######??????????????? | | ######"""#+"######## #" h #??????????????? | | ????# #?# g#?????# " h #??????????????? | | ????# ???# #?????# w # % ! #??????????????? | | ?????????# #?????# ? #??????????????? | | ?????????# #?????### ?#bh# #??????????????? | | ?????????# #??????# ? #??????????????? | | ?????????# #??????# #####??????????????? | | ?????????# ???????? g # ?#?????????????????? | | ????????? ????????# b ? ??????????????????? | | ?????????g ????????# # % #??????????????????? | | ??????g??gg ????????# ! #??????????????????? | | ??????g??g g???????# g%b ??????????????????? | | ???????g? g ????????## h[ = ??????????????????? | | ??????gg? gg????????# !* ??????????????????? | | ????????????????????## bl ######?????????????? | | ????????????????????# @ * #?????????????? | | ????????????????????# =#?????????????? | | ????????????????????# #?????????????? | | ????????????????????## " = |#?????????????? | | ?????????????????????##"""" #?????????????? | | ??????????????????????#"""" #?????????????? | | ??????????????????????# #?????????????? | | ??????????????????????# #?????????????? | | ??????????????????????# #?????????????? | | ??????????????????????# #?????????????? | | ??????????????????????# #?????????????? | | ???????????????????????? ? #?????????????? | | ????????????????????????????########?????????????? | | | | | | | | | | | | | | | | | | | | | | | | | +----------------------------------------------------+ Best States ------------- Heat Dissipation 218 Energy Generation 87 Energy Capacity 940 Matter Stores 300 Matter Capacity 300 Sight Range 22 Robot Scan Range 28 Terrain Scan Range 24 Terrain Scan Density 810 Power Amplification 30 Armor Coverage 675 Resistance: KI 20 Resistance: TH 20 Resistance: EX 5 Weapon Shielding 66 Weapon Cycling 25 Phase Shifting 15 Evasion (%) 55 Target Analysis 12 Core Analysis 10 Energy Filtering 30 Particle Charging 25 Salvage Targeting 2 Offensive Hacking 37 Defensive Hacking 20 Relay Coupler Types 70 Relay Coupler Value 1 Item Schematics ----------------- Imp. Particle Charger | -6/Extension | Hacked Force Field | -5/Factory | Hacked Cmb. Airjet | -5/Factory | Hacked Adv. Force Field | -4/Factory | Hacked Adv. Weapon Cycler | -4/Factory | Hacked Assault Drone Bay | -4/Zhirov | Free Exp. Heat Sink | -4/Zhirov | Free Exp. Optical Array | -4/Zhirov | Free Imp. Arc Thrower | -4/Zhirov | Free Robot Schematics ------------------ None Fabricated ------------ Adv. Force Field | x2 | -4/Factory Adv. Weapon Cycler | x2 | -4/Factory Alien Tech Used ----------------- Integrated Reactor Transdimensional Reconstructor Achievements -------------- 30k Club 40k Club 50k Club Exterminator Giant Slayer Infiltrator More Power To You Overachiever Preemptive Strike Rambo Slippery One Torch We Are Legion Challenges ------------ None RPGLIKE | -11 -10 -10 -10 -9 -8 -8 -8 -8 -7 -7 -7 -7 -6 -6 -6 -6 -6 -5 -5 -5 -5 -4 -4 -4 -4 -4 -3 -3 -2 -2 -1 -1 -1 -1 --------- Run | Scr Mat Min Exi Min Mat Gar Mat Gar Fac Gar Fac Gar Fac Ext Cet Arc Hub Fac Upp Upp War Pro Fac Upp Upp Zhi Pro Res Res Tes Acc Gar Acc Com Levels Raised 35 | . 1 1 1 . 2 3 2 2 3 . . 1 1 1 1 . 1 1 1 . . . 2 . . . 1 2 2 1 2 1 1 1 XP Earned 56360 | 3000 1755 2729 350 500 2885 4608 3487 3132 3381 533 157 691 2223 1919 671 317 1141 2274 249 333 176 935 1633 580 425 220 1472 2085 3238 1160 2824 1764 2130 1383 XP Spent 53870 | 2360 1500 2000 1610 . 2925 4550 2825 2550 3425 1635 . 1000 2070 600 2000 . 800 2600 1480 . . . 2865 . . . 810 2250 3290 . 5520 1100 2105 . Upgrades 129 | 11 3 4 4 . 20 12 6 4 5 4 . 1 5 1 1 . 1 4 6 . . . 3 . . . 3 9 5 . 12 1 4 . Power Slot 1 | . . . . . . . . . . . . . . . . . . . . . . . . . . . . . 1 . . . . . Propulsion Slot 3 | 1 . . . . . . . . . . . . . . . . 1 . . . . . . . . . . . . . . 1 . . Utility Slot 7 | 1 . . . . . . 2 . 1 . . . 1 . 1 . . . . . . . 1 . . . . . . . . . . . Weapon Slot 4 | 1 . . 1 . . . . . . . . . . . . . . . . . . . . . . . . . 1 . . . 1 . Core Integrity 23 | . . . . . 15 4 . . . . . . . . . . . . . . . . 1 . . . . . . . . . 3 . Heat Dissipation 27 | 3 . . 1 . . 4 . . . 1 . . . . . . . . 1 . . . . . . . 3 . 2 . 12 . . . Energy Generation 4 | 1 . . 1 . . . . . . 1 . . . . . . . . . . . . . . . . . . 1 . . . . . Energy Storage 7 | . . . . . . . 2 . 2 2 . . . . . . . . . . . . 1 . . . . . . . . . . . Mass Support 2 | . . . . . . . . . . . . . 1 1 . . . . . . . . . . . . . . . . . . . . Inventory Capacity 4 | . . . . . 1 . . 2 . . . 1 . . . . . . . . . . . . . . . . . . . . . . Sensor Range 13 | 4 . . . . . . . . . . . . . . . . . . . . . . . . . . . 9 . . . . . . Terrain Scan Density 8 | . . . . . . . . . . . . . 3 . . . . . 5 . . . . . . . . . . . . . . . Ranged Accuracy 6 | . 3 . . . . 3 . . . . . . . . . . . . . . . . . . . . . . . . . . . . Hack Attack % 5 | . . 4 . . . . . . 1 . . . . . . . . . . . . . . . . . . . . . . . . . Hack Defense % 2 | . . . . . 1 . . . 1 . . . . . . . . . . . . . . . . . . . . . . . . . KI Resistance % 4 | . . . . . 3 1 . . . . . . . . . . . . . . . . . . . . . . . . . . . . TH Resistance % 4 | . . . . . . . 2 2 . . . . . . . . . . . . . . . . . . . . . . . . . . EX Resistance % 1 | . . . 1 . . . . . . . . . . . . . . . . . . . . . . . . . . . . . . . TH Damage % 4 | . . . . . . . . . . . . . . . . . . 4 . . . . . . . . . . . . . . . . Protomatter Created 6848 | . 66 58 . 17 230 294 434 260 337 240 . 405 178 60 54 . 263 352 80 35 1165 . 92 169 84 . 31 281 319 225 107 174 569 269 Integrity Restored 14299 | . 45 345 . 27 546 1245 633 580 243 573 . 996 351 831 139 . 442 912 240 87 2235 . 129 408 96 . 93 795 627 219 321 297 532 312 Core 13255 | . 45 345 . 27 546 1245 436 580 243 573 . 672 351 727 29 . 250 912 240 87 2235 . 129 408 96 . 93 795 627 219 321 297 415 312 Parts 1044 | . . . . . . . 197 . . . . 324 . 104 110 . 192 . . . . . . . . . . . . . . . 117 . Protomatter Decayed 3263 | . 65 29 . . . 43 359 448 288 11 . 68 61 322 91 116 350 . . 12 420 . 49 33 52 . . . 14 74 . 65 265 28 Game ------ Seed SegregatorAntimatterBoosters Manual? 0 Play Time 03:41:46 Cumulative 66.7 hours Start 2020.10.13 @ 03:24:11 End 2020.10.13 @ 07:12:06 Sessions 1 Manual Loads 0 Difficulty Rogue Special Mode Winter2019/RPGLIKE Game No. 61 Rogue 60 Adventurer 1 Explorer 0 Win Type - Total 3 Types 3/0/0/0/0/0/0/0/0 Lore% 42 Gallery% 56 Achievement% 53 Wizard Run 0 Options --------- ASCII 0 Keyboard 1 Movement Numpad Keybinds 0 Fullscreen 1 Font 18/SmallcapsGlow Map View 76x50 Tactical HUD 1 Map Filters NONE Filters NONE Steam 1 RUN: 4bd28cf8-1bb6-4f43-b3f5-5a32fa5ed1f5